{"text_format":"1","workbook":"xlsx","n_sheets":1,"sheets":["IDL"],"not_rendered":{"charts":0,"images":0,"macros":1,"external_links":0,"defined_names":226,"comments":0,"pivot_tables":0},"unopened":[],"bounds":{"document_bytes":16777216,"sheet_cells":100000,"rows_first":2000,"rows_last":500,"rows_between":2000,"halvings":0,"cell_chars":16384,"cell_head_chars":4096},"cells_cut":0,"cells_raw":0,"read":"whole","date_system":"1900"}

{"sheet":"IDL","index":0,"n_rows":474,"n_cols":43,"rows_kept":474,"cut":false,"hidden":false,"merged":[[0,9,0,10]]}
["CALIFORNIA STATE CONTROLLER'S OFFICE IDL SUPPLEMENTATION CALCULATOR - 2026",null,null,null,null,null,null,null,null,"COMPUTED FIELDS"]
["Salary Information",null,null,null,null,null,"EFF. 7/1/2026",null,null,"Gross Net",{"$f":"ROUND(SUM(K3:K5),2)","v":0},null,"Regular Pay",null,null,"Look up Retire Data",null,null,"MED%",{"$f":"IF(OR(SS_MED=\"MED\",SS_MED=\"SS\"),MD_,0)","v":1.4500000000000001E-2},null,null,null,null,null,null,null,null,null,null,null,null,"Federal Tax Tables",null,null,null,null,null,"CA Tax Tables"]
["Original Salary Rate",4000,"Reduced Sal Rate",null,null,"Salary Per","M","(M or H)",null,"Reg Net",{"$f":"ROUND(IF(Salary_Per=\"H\",REDUCED_SALARY*HOURS_OF_REGULAR_PAY,(REDUCED_SALARY/PAYPERIOD_HOURS)*HOURS_OF_REGULAR_PAY),2)","v":0},null,{"$f":"REG_PAY_WITHHOLDING","v":0},"Ret. Withholding",null,"SS/Med",{"$f":"VLOOKUP(RETIREMENT_ID,RETID_TABLE,4,FALSE)","v":"SS"},null,"MED",{"$f":"ROUND(Gross_Net_OPEB*MED_,2)","v":0},null,"SS",6.2E-2,null,"RETID_TABLE",null,null,null,null,"OPEB_TABLE EZ"]
["Collective Bargaining Unit","R01","(R01-R021, U)",null,null,null,null,null,null,"IDL Full",{"$f":"ROUND(IF(Salary_Per=\"H\",Salary_Rate*HOURS_IDL_FULL,(SALARY/PAYPERIOD_HOURS)*HOURS_IDL_FULL),2)","v":0},null,{"$f":"ROUND(Reg_Net_Grs_OPEB*OASDI_,2)","v":0},"SS",null,"Exl amt",{"$f":"IF(OR(PayFreq=\"M\", PayFreq=\"S\"),VLOOKUP(RETIREMENT_ID,RETID_TABLE,3,FALSE),(VLOOKUP(RETIREMENT_ID,RETID_TABLE,3,FALSE)*12)/26)","v":513},null,"SS%",{"$f":"IF(SS_MED=\"SS\",OA_,0)","v":6.2E-2}," ","MED",1.4500000000000001E-2,null,"AC","EE Rate","Excl.","SS/Med",null,"_ID","EE Rate",null,"STANDARD DEDUCTION TABLE",null,null,null,null,null,"ADDITIONAL ALLOWANCES",null,null,1000]
["OPEB CBID","R01",null,null,null,null,null,null,null,"IDL 2/3",{"$f":"(ROUND(IF(Salary_Per=\"H\",Salary_Rate*HOURS_IDL_23,(SALARY/PAYPERIOD_HOURS)*HOURS_IDL_23),2))","v":0},null,{"$f":"ROUND(Reg_Net_Grs_OPEB*MED_,2)","v":0},"Med",null,"Percent",{"$f":"VLOOKUP(RETIREMENT_ID,RETID_TABLE,2,FALSE)","v":0.08},null,"SS",{"$f":"ROUND(Gross_Net_OPEB*OASDI_,2)","v":0},null,"SDI",1.2999999999999999E-2,null,"00",0.06,317,"NO",null,"01",0,null,"FED MARITAL","W-4","--- HIGH WAGES ---"]
["Pay Frequency (M, S, or B)","M","Pay Period Days",21,null,"(21/22)",null,null,null,"PP Hours",{"$f":"IF(ISBLANK(Time_Base_Fraction),PAYPERIOD_DAYS*8,PAYPERIOD_DAYS*8*TIMEBASE)","v":168},null,{"$f":"IF(SDI=\"yes\",Reg_Net_Grs_OPEB*W5,0)","v":0},"SDI",null,null,null,null,"OPEB Rate",{"$f":"VLOOKUP(OPEB_AC,OPEB_TABLE,2,FALSE)","v":0},null,null,null,null,"01",3.7499999999999999E-2,0,"NO"," ","02",0,null,"STATUS","PRE-2020","Y","N"]
["Time Base Fraction",null,"Locked-in Pay Not",null,"Subj to Retirement",null,null,null,null,"Org Hr Rate",{"$f":"IF(Salary_Per=\"H\",ROUND(Salary_Rate,5),ROUND(SALARY/PAYPERIOD_HOURS,5))","v":23.809519999999999},null,{"$f":"ROUND(REG_PAY_SUBJ_RETIREMENT*OPEB_rate,2)","v":0},"Reg. OPEB",null,null,null,null,"OPEB Amt",{"$f":"Reg_OPEB+IDL_OPEB+IDL_23_OPEB","v":0},null,null,null,null,"02",0,0,"NO"," ","03",0,null,"M/S/H",4300,null,null,null,null,"LOW INCOME TAX EXEMPTION"]
["Retirement/SDI Information",null,null,null,null,null,null,null,null,null,null,null,null,null,null,"Supplementation Data",null,null,null,null,null,null,null,null,"03",3.7499999999999999E-2,0,"SS"," ","04",0,null,null,null,null,null,null,null,null," --- MARRIED ---",null,"HEAD OF"]
["Retirement ID","45","Pay Period",1,"/",26,null,null,null,"Gross Net - OPEB",{"$f":"ROUND(SUM(K10:K12),2)","v":0},null,"IDL Full",null,null,"Sup Full",{"$f":"Supple_Gross_Net/Divided_By","v":0},null,null,null,null,null,null,null,"04",3.7499999999999999E-2,0,"SS"," ","05",0,null,null,null,null,null,null,null,"SINGLE","0 or 1","2 or more","HOUSEHOLD"]
["Apply Exclusion Amt ",null,"(Yes, No, Blank)","(MM)",null,"(YY)",null,null,null,"Reg Net - OPEB",{"$f":"ROUND(IF(Salary_Per=\"H\",REDUCED_SALARY*HOURS_OF_REGULAR_PAY,(REDUCED_SALARY/PAYPERIOD_HOURS)*HOURS_OF_REGULAR_PAY),2)-Reg_OPEB","v":0},null,{"$f":"IDL_FULL_PAY_WITHHOLDING","v":0},"Ret. Withholding",null,"Hours",{"$f":"ROUND(Grs_Full_Supple/Org_Hr_Rate,0)","v":0},null,null,null,null,null,null,null,"05",9.5000000000000001E-2,513,"SS"," ","06",0.04,null,null,null,null,null,null,null,18896,18896,37791,37791]
["(for Semimonthly only)",null,null,null,null,null,null,null,null,"IDL Full - OPEB",{"$f":"ROUND(IF(Salary_Per=\"H\",Salary_Rate*HOURS_IDL_FULL,(SALARY/PAYPERIOD_HOURS)*HOURS_IDL_FULL),2)-IDL_OPEB","v":0},null,{"$f":"IF(IDL_Full_OPEB=0,0,ROUND(M23-Reg_SS,2))","v":0},"SS",null,"Days",{"$f":"IF(Salary_Per=\"H\",0,ROUNDDOWN(Q10/Time_Base_Hrs,0))","v":0},null,null,null,null,null,null,null,"06",0.01,317,"MED"," ","07",0,null,"SINGLE (S)"]
["SDI",{"$f":"IF(LEFT(CBID,1)=\"R\",VLOOKUP(CBID,SDI_CBID,2),\"NO\")","v":"YES"},null,null,null,null,null,null,null,"IDL 2/3 - OPEB",{"$f":"(ROUND(IF(Salary_Per=\"H\",Salary_Rate*HOURS_IDL_23,(SALARY/PAYPERIOD_HOURS)*HOURS_IDL_23),2))-IDL_23_OPEB","v":0},null,{"$f":"IF(IDL_Full_OPEB=0,0,ROUND(M24-Reg_Med,2))","v":0},"Med",null,"Hours",{"$f":"IF(Salary_Per=\"H\",Q10,Q10-(Q11*Time_Base_Hrs))","v":0},null,null,null,null,null,null,null,"07",0.125,513,"SS"," ","08",0,null,"BASE AMT","PERCENT","BASE TAX",null,null,null,"STANDARD DEDUCTION TABLE"]
["Federal/State Tax Information",null,null,{"$f":"LEFT(W7,10)","v":""},{"$f":"X7","v":0},null,null,null,null,null,null,null,{"$f":"IF(IDL_Full_OPEB=0,0,ROUND(M25-FTAX2,2))","v":0},"Fed",null,null,null,null,null,null,null,null,null,null,"08",0.05,513,"SS"," ","09",0,null,-999999,0,0,null,null,null,null," --- MARRIED ---",null,"HEAD OF"]
["Federal Filing Status","M","Fed Exemptions",0,"(M, S) (1-99)",null,null,null,null,null,null,null,{"$f":"IF(IDL_Full_OPEB=0,0,ROUND(M26-STAX2,2))","v":0},"State",null,null,null,null,null,null,null,null,null,null,"09",0.08,513,"SS"," ","10",0,null,7500,0.1,0,null,null,null,"SINGLE","0 or 1","2 or more","HOUSEHOLD"]
["Federal HW",null,"Fed Claim Deps",null,null,null,null,null,null,null,null,null,{"$f":"IF(IDL_Full_OPEB=0,0,ROUND(M27-Reg_SDI,2))","v":0},"SDI",null,null,null,null,null,null,null,null,null,null,"0A",8.5000000000000006E-2,513,"SS"," ","11",0,null,19900,0.12,1240,null,null,null,5706,5706,11412,11412]
["Federal Other Income",null,"Fed Deductions",null,null,null,null,null,null,null,null,null,{"$f":"SUM(M11:M15)","v":0},"Total",null,"SDI CBID",null,null,"EMPCR%",{"$f":"VLOOKUP(CBID,S17:T40,2,FALSE)","v":0},null,null,null,null,"0B",8.5000000000000006E-2,513,"SS"," ","12",0,null,57900,0.22,5800]
["State Marital Status","M","Reg Allowances",0,"(M, S, H) (1-99)",null,null," ",null,null,null,null,{"$f":"IF(IDL_Full=0,0,ROUND(IDL_Full-M16,2))","v":0},"IDL Full Grs",null,"R01","YES",null,"R01",0,null,null,null,null,"0C",8.5000000000000006E-2,513,"SS"," ","13",0,null,113200,0.24,17966,null,null,null,"SINGLE"]
["Additional State Allowances (1-99)",null,"Iss Mon and Yr",1,1,26,"(1-99)",null,null,"Reg Time",{"$f":"(Reg_Days*Time_Base_Hrs)+Reg_Hrs","v":0},null,{"$f":"ROUND(IDL_FULL_PAY*OPEB_rate,2)","v":0},"IDL OPEB",null,"R02","NO",null,"R02",0,null,null,null,null,"0D",8.7499999999999994E-2,513,"SS"," ","14",0,null,209275,0.32,41024,null,null,null,"BASE AMT","PERCENT","BASE TAX"]
[null,null,null,"(MM)",null,"(YY)",null,null,null,"IDL F Time",{"$f":"(IDL_Full_Days*Time_Base_Hrs)+IDL_Full_Hrs","v":0},null,null,null,null,"R03","YES",null,"R03",0,null,null,null,null,"0E",8.5000000000000006E-2,513,"SS"," ","15",0,null,263725,0.35,58448,null,null,null,0,1.0999999999999999E-2,0]
["Time for","Days","Hours",null,null,null,null,null,null,"IDL 2/3 Time",{"$f":"(IDL_23_Days*Time_Base_Hrs)+IDL_23_Hrs","v":0},null,"IDL 2/3",null,null,"R04","YES",null,"R04",0,null,null,null,null,"0F",8.5000000000000006E-2,513,"SS"," ","16",1.4E-2,null,648100,0.37,192979.25,null,null,null,11079,2.1999999999999999E-2,121.87]
["Regular Pay",null,null,null,null,null,null,null,null,"Total Time",{"$f":"HOURS_OF_REGULAR_PAY+HOURS_IDL_FULL+HOURS_IDL_23","v":0},null,{"$f":"IDL_23_PAY_WITHHOLDING","v":0},"Ret. Withholding",null,"R05","NO",null,"R05",0,null,null,null,null,"0G",8.5000000000000006E-2,513,"SS"," ","17",0,null,null,null,null,null,null,null,26264,4.3999999999999997E-2,455.94]
["IDL Full Pay",null,null,null,null,null,null,null,null,"EPMC%",{"$f":"+Q5+T16","v":0.08},null,{"$f":"IF(IDL_Full=0,0,REG_RETIREMENT_WH+IDL_FULL_RETIREMENT_WH)","v":0},"EPMC Reg+IDL F",null,"R06","NO",null,"R06",0,null,null,null,null,"0H",8.5000000000000006E-2,513,"SS"," ","18",0,null,"MARRIED (M)",null,null,null,null,null,41452,6.6000000000000003E-2,1124.21]
["IDL 2/3 Pay",null,null,null,null,null,null,null,null,"EPMC",{"$f":"ROUND(REG_RETIREMENT_WH+IDL_FULL_RETIREMENT_WH+IDL_23_RETIREMENT_WH,2)","v":0},null,{"$f":"IF(IDL_Full=0,0,ROUND((Reg_Net_Grs_OPEB+IDL_Full_OPEB)*OASDI_,2))","v":0},"SS Reg+IDL F",null,"R07","NO",null,"R07",0,null,null,null,null,"10",0.06,317,"NO"," ","19",0,null,"BASE AMT","PERCENT","BASE TAX",null,null,null,57542,8.7999999999999995E-2,2186.15]
[null,null,null,null,null,null,null,null,null,null,null,null,{"$f":"IF(IDL_Full=0,0,ROUND((Reg_Net_Grs_OPEB+IDL_Full_OPEB)*MED_,2))","v":0},"Med Reg+IDL F",null,"R08","NO",null,"R08",0,null,null,null,null,"11",0.01,317,"NO"," ","20",0,null,-999999,0,0,null,null,null,72724,0.1023,3522.17]
[null,"Full Net","Regular","IDL Full",null,"IDL 2/3",null,null,null,null,null,null,{"$f":"FTAX3","v":0},"Fed Reg+IDL F",null,"R09","NO",null,"R09",0,null,null,null,null,"12",0.06,317,"MED"," ","21",0,null,19300,0.1,0,null,null,null,371479,0.1133,34084.81]
["Gross",{"$f":"Gross_Net","v":0},{"$f":"Reg_Net_Grs","v":0},{"$f":"IDL_Grs","v":0},null,{"$f":"IDL_23_Grs","v":0},null,null,null,"SDI1",{"$f":"IF(SDI=\"Yes\",SDIGRS*W5,0)","v":0},null,{"$f":"STAX3","v":0},"State Reg+IDL F",null,"R10","YES",null,"R10",0,null,null,null,null,"13",3.7499999999999999E-2,0,"MED"," ","48",0,null,44100,0.12,2480,null,null,null,445771,0.12429999999999999,42502.09]
["Retirement",{"$f":"EPMC","v":0},{"$f":"REG_RETIREMENT_WH","v":0},{"$f":"IDL_FULL_RETIREMENT_WH","v":0},null,{"$f":"IDL_23_RETIREMENT_WH","v":0},null,null,null,"SDIGRS",{"$f":"Gross_Net_OPEB","v":0},null,{"$f":"IF(OR(IDL_Full=0,SDI=\"NO\"),0,(ROUND((Reg_Net_Grs_OPEB+IDL_Full_OPEB)*W5,2)))","v":0},"SDI Reg+IDL F",null,"R11","YES",null,"R11",0,null,null,null,null,"14",0,0,"NO"," ","50",0,null,120100,0.22,11600,null,null,null,742953,0.1353,79441.81]
["OPEB",{"$f":"OPEB_amt","v":0},{"$f":"Reg_OPEB","v":0},{"$f":"IDL_OPEB","v":0},null,{"$f":"IDL_23_OPEB","v":0},null,null,null,null,null,null,{"$f":"ROUND((IDL_2_3/3)*2,2)","v":0},"IDL 2/3 Grs",null,"R12","NO",null,"R12",0,null,null,null,null,"15",0.06,238,"NO"," ","58",0,null,230700,0.24,35932,null,null,null,1000000,0.14630000000000001,114220.27]
["Social Security",{"$f":"OASDI","v":0},{"$f":"Reg_SS","v":0},null,null,null,null,null,null,"PP Days",{"$f":"IF(Days_in_Pay_Period=22,22,21)","v":21},null,{"$f":"ROUND(IDL_23_PAY*OPEB_rate,2)","v":0},"IDL 2/3 OPEB",null,"R13","NO",null,"R13",0,null,null,null,null,"16",0.06,238,"MED"," ","59",0,null,422850,0.32,82048,null,null,null,9999999,0.14630000000000001,114220.27]
["Medicare",{"$f":"MED","v":0},{"$f":"Reg_Med","v":0},null,null,null,null,null,null,"Timebase",{"$f":"IF(ISBLANK(Time_Base_Fraction),1,Time_Base_Fraction)","v":1},null,null,null,null,"R14","YES",null,"R14",0,null,null,null,null,"17",0.06,317,"MED"," ","67",0,null,531750,0.35,116896]
["Federal Tax",{"$f":"FTAX1","v":0},{"$f":"FTAX2","v":0},null,null,null,null,null,null,"Time Base Hrs",{"$f":"IF(ISBLANK(Time_Base_Fraction),8,8*Time_Base_Fraction)","v":8},null,"Regular Pay",{"$f":"ROUND(IF(Salary_Per=\"H\",REDUCED_SALARY*HOURS_OF_REGULAR_PAY,(REDUCED_SALARY/PAYPERIOD_HOURS)*HOURS_OF_REGULAR_PAY),2)","v":0},null,"R15","YES",null,"R15",0,null,null,null,null,"18",0.06,317,"NO"," ","68",0,null,788000,0.37,206583.5,null,null,null,"MARRIED"]
["State Tax",{"$f":"STAX1","v":0},{"$f":"STAX2","v":0},null,null,null,null,null,null,"Salary",{"$f":"IF(Salary_Per=\"H\",Salary_Rate,Salary_Rate*TIMEBASE)","v":4000},null,"Reg. Pay Subj. to Ret.",{"$f":"IF(Salary_Per=\"H\",RED_SAL_NOT_LOCKED*HOURS_OF_REGULAR_PAY,ROUND((RED_SAL_NOT_LOCKED/PAYPERIOD_HOURS),5)*HOURS_OF_REGULAR_PAY)","v":0},null,"R16","NO",null,"R16",0,null,null,null,null,"19",0.11,317,"MED"," ","77",0,null,null,null,null,null,null,null,"BASE AMT","PERCENT","BASE TAX"]
["SDI Withheld",{"$f":"_SDI1","v":0},{"$f":"Reg_SDI","v":0},null,null,null,null,null,null,"Reduced Salary",{"$f":"IF(HAS_REDUCED_SALARY=FALSE,SALARY,ROUND(Red_Sal_Rate*TIMEBASE,2))","v":4000},null,"Reg. Pay Exclusion",{"$f":"IF(REG_PAY_SUBJ_RETIREMENT>EXCLUSION,EXCLUSION,REG_PAY_SUBJ_RETIREMENT)","v":0},null,"R17","YES",null,"R17",0,null,null,null,null,"1A",7.0000000000000007E-2,317,"NO"," ","78",0,null,"HEAD OF HOUSEHOLD (H)",null,null,null,null,null,0,1.0999999999999999E-2,0]
["Gross Net",{"$f":"ROUND(B26-(ROUND(SUM(B27:B33),2)),2)","v":0},{"$f":"ROUND(C26-(SUM(C27:C33)),2)","v":0},{"$f":"ROUND(D26-D27-D28,2)","v":0},null,{"$f":"ROUND(F26-F27-F28,2)","v":0},null,null,null,"Red. Sal. Not Locked",{"$f":"REDUCED_SALARY-Locked_in_Pay","v":4000},null,"Reg. Pay Withholding",{"$f":"IF(REG_PAY_SUBJ_RETIREMENT>EXCLUSION,(REG_PAY_SUBJ_RETIREMENT-EXCLUSION)*EPMC_P,0)","v":0},null,"R18","NO",null,"R18",0,null,null,null,null,"1B",0.11,317,"NO",null,"79",0,null,"BASE AMT","PERCENT","BASE TAX",null,null,null,22158,2.1999999999999999E-2,243.74]
["Hourly Rate Used for Calc:",{"$f":"Org_Hr_Rate","v":23.809519999999999},null,null,null,null,null,null,null,"Retirement Sal Rate",{"$f":"SALARY-Locked_in_Pay","v":4000},null,"Reg. Pay Exclusion Remaining",{"$f":"EXCLUSION-REG_PAY_EXCLUSION","v":513},null,"R19","NO",null,"R19",0,null,null,null,null,"1C",0.11,317,"MED",null,"88",2.3E-2,null,-999999,0,0,null,null,null,52528,4.3999999999999997E-2,911.88]
["Supplementation Gross Net:",{"$f":"IF(ROUND(Full_Net-(SUM(C34:F34)),2)<0,0,ROUND(Full_Net-(SUM(C34:F34)),2))","v":0},"Divided By",{"$f":"Withhold_Factor","v":0.63749999999999996},null,"=",{"$f":"ROUND(Supple_Gross_Net/Divided_By,2)","v":0},null,null,"Total Exclusion",{"$f":"IF(APPLY_EXCLUSION=TRUE,RET_EXCLUSION_AMT,0)","v":513},null,null,null,null,"R20","YES",null,"R20",0,null,null,null,null,"1D",0.11,317,"MED",null,"89",2.3E-2,null,15550,0.1,0,null,null,null,82904,6.6000000000000003E-2,2248.42]
["Gross for Full Supplementation:",{"$f":"Q9","v":0},null,null,null,null,null,null,null,"Apply Exclusion?",{"$f":"IF(OR(PayFreq<>\"S\",LEFT(Ret_SM_Exl_Apply,1)=\"Y\"),TRUE, FALSE)","v":true},null,"IDL Full Pay",{"$f":"IF(Salary_Per=\"H\",RETIREMENT_SALARY_RATE*HOURS_IDL_FULL,RETIREMENT_SALARY_RATE/PAYPERIOD_HOURS*HOURS_IDL_FULL)","v":0},null,"R21","YES",null,"R21",0,null,null,null,null,"1E",0.11,317,"NO",null,"97",0,null,33250,0.12,1770,null,null,null,115084,8.7999999999999995E-2,4372.3]
["Leave Credit Hours Required for Full Supplementation:",null,null,{"$f":"Q10","v":0},null,null,null,null,null,"Reduced Salary?",{"$f":"IF(OR(ISBLANK(Red_Sal_Rate),Red_Sal_Rate<=0),FALSE, TRUE)","v":false},null,"IDL Full Pay Exclusion",{"$f":"IF(IDL_FULL_PAY>N35,N35,IDL_FULL_PAY)","v":0},null,null,null,null,"C",0,null,null,null,null,"1F",0.11,317,"MED",null,"98",0,null,83000,0.22,7740,null,null,null,145448,0.1023,7044.33]
["Days:",{"$f":"Q11","v":0},"Hours:",{"$f":"Q12","v":0},null,null,null,null,null,null,null,null,"IDL Full Pay Withhold.",{"$f":"IF(IDL_FULL_PAY>IDL_FULL_PAY_EXCLUSION,(IDL_FULL_PAY-IDL_FULL_PAY_EXCLUSION)*EPMC_P,0)","v":0},null,null,null,null,"SD",0,null,null,null,null,"1G",0.11,317,"NO",null,"99",0,null,121250,0.24,16155,null,null,null,742958,0.1133,68169.600000000006]
[null,null,null,null,null,null,null,"rev. 7/14/2026",null,null,null,null,"IDL Full Pay Exclusion Remain.",{"$f":"N35-IDL_FULL_PAY_EXCLUSION","v":513},null,null,null,null,"U",0,null,null,null,null,"1H",0.11,317,"NO",null,"ON",0,null,217300,0.32,39207,null,null,null,891542,0.12429999999999999,85004.17]
[null,null,null,null,null,null,null,null,null,null,null,null,null,null,null,null,null,null,null,null,null,null,null,null,"1J",0.11,317,"MED",null,null,null,null,271750,0.35,56631,null,null,null,1000000,0.1353,98485.5]
[null,null,null,null,null,null,null,null,null,null,null,null,"IDL 2/3 Pay",{"$f":"IF(Salary_Per=\"H\",RETIREMENT_SALARY_RATE*HOURS_IDL_23,RETIREMENT_SALARY_RATE/PAYPERIOD_HOURS*HOURS_IDL_23)","v":0},null,null,null,null,null,null,null,null,null,null,"1K",0.11,317,"MED",null,null,null,null,656150,0.37,191171,null,null,null,1485906,0.14630000000000001,164228.57999999999]
[null,null,"GENERAL INSTRUCTIONS",null,null,null,null,null,null,null,null,null,"IDL 2/3 Pay Exclusion",{"$f":"IF(IDL_23_PAY>N40,N40,IDL_23_PAY)","v":0},null,null,null,null,null,null,null,null,null,null,"1L",0.11,317,"NO",null,"OPEB_TABLE",null,null,null,null,null,null,null,null,9999999,0.14630000000000001,164228.57999999999]
[null,null,null,null,null,null,null,null,null,null,null,null,"IDL 2/3 Pay Withhold.",{"$f":"IF(IDL_23_PAY>IDL_23_PAY_EXCLUSION,(IDL_23_PAY-IDL_23_PAY_EXCLUSION)*EPMC_P,0)","v":0},null,null,null,null,null,null,null,null,null,null,"1M",0.105,0,"MED",null,"OPEB CBID","EE Rate"]
["This spreadsheet can be used to calculate the Industrial Disability Leave Supplementation (IDL/S) for",null,null,null,null,null,null,null,null,null,null,null,"IDL 2/3 Pay Exclusion Remain.",{"$f":"N40-IDL_23_PAY_EXCLUSION","v":513},null,null,null,null,null,null,null,null,null,null,"1P",0.11,317,"MED",null,"C01",{"$f":"OPEB_01","v":0},null,"SINGLE - HIGH WAGE (I)",null,null,null,null,null,"UNMARRIED HEAD OF HOUSEHOLD"]
["Civil Service employees paid monthly or semi-monthly for a specific tax year. All fields are LOCKED",null,null,null,null,null,null,null,null,null,null,null,null,null,null,"Mandatory Withhold Factor",null,null,null,null,null,null,null,null,"1Q",0.105,317,"NO",null,"C02",{"$f":"OPEB_02","v":0},null,"BASE AMT","PERCENT","BASE TAX",null,null,null,"BASE AMT","PERCENT","BASE TAX"]
["except input fields. User either the keyboard \"TAB\" button or \"ARROWS\" buttons to move between",null,null,null,null,null,null,null,null,"Tax Eff 1/1/18",null,null,null,null,null,"SS/MED","Fed Exempt","State Exempt","Factor",null,null,null,null,null,"1R",0.11,317,"NO",null,"C03",{"$f":"OPEB_03","v":0},null,-999999,0,0,null,null,null,0,1.0999999999999999E-2,0]
["input fields.",null,null,null,null,null,null,null,null,"TXGRS1",{"$f":"ROUND(Gross_Net_OPEB-EPMC,2)","v":0},"<Gross",null,null,null,{"$f":"SS_MED","v":"SS"},{"$f":"IF(OR(FEDE=99,FEDM=\"E\"),TRUE,FALSE)","v":false},{"$f":"IF(STE=99,TRUE,FALSE)","v":false},{"$f":"SUMPRODUCT((P51:P62=SS_MED)*(Q51:Q62=Fed_Exempt)*(R51:R62=State_Exempt)*(S51:S62))","v":0.63749999999999996},null,null,null,null,null,"1S",0.11,317,"MED",null,"C04",{"$f":"OPEB_04","v":0},null,8050,0.1,0,null,null,null,22173,2.1999999999999999E-2,243.9]
[null,null,null,null,null,null,null,null,null,"TXGRS2",{"$f":"(Reg_Net_Grs_OPEB-REG_RETIREMENT_WH)","v":0},"<Reg Grs",null,null,null,null,null,null,null,null,null,null,null,null,"1T",0.11,317,"NO",null,"C05",{"$f":"OPEB_05","v":0},null,14250,0.12,620,null,null,null,52530,4.3999999999999997E-2,911.75]
["Specific entry instructions:",null,null,null,null,null,null,null,null,"TXGRS3",{"$f":"(Reg_Net_Grs_OPEB+IDL_Full_OPEB)-M22","v":0},"<Reg+IDL Grs",null,null,null,"SS/MED","Fed Exempt","State Exempt","Factor",null,null,null,null,null,"1U",0.06,317,"MED",null,"C06",{"$f":"OPEB_06","v":0.04},null,33250,0.22,2900,null,null,null,67716,6.6000000000000003E-2,1579.93]
[null,null,null,null,null,null,null,null,null,null,null,null,null,null,null,"SS",false,false,0.63749999999999996,null,null,null,null,null,"1V",0.11,317,"MED",null,"C07",{"$f":"OPEB_07","v":0},null,60900,0.24,8983,null,null,null,83805,8.7999999999999995E-2,2641.8]
["Salary Rate: Enter the Employee's salary rate in effect for the pay period to be paid. The salary rate should",null,null,null,null,null,null,null,null,"      FEDERAL TAX",null,null,null,null,null,"MED",false,false,0.69950000000000001,null,null,null,null,null,"1W",0.11,317,"NO",null,"C08",{"$f":"OPEB_08","v":0},null,108938,0.32,20512,null,null,null,98990,0.1023,3978.08]
["reflect any locked-in premiums or shift differential pay that can be included in the IDL calculations.",null,null,null,null,null,null,null,null,"PAYFACT",{"$f":"IF(PayFreq=\"M\",12,IF(PayFreq=\"S\",24,IF(PayFreq=\"B\",26,0)))","v":12},null,{"$f":"IF(AND(FedHW=\"Y\",FEDM=\"M\"),\"A\",IF(AND(FedHW=\"Y\",FEDM=\"S\"),\"I\",IF(AND(FedHW=\"Y\",FEDM=\"H\"),\"E\",FEDM)))","v":"M"},null,null,"NO",false,false,0.71399999999999997,null,null,null,null,null,"1X",0.11,317,"MED",null,"C09",{"$f":"OPEB_09","v":0},null,136163,0.35,29224,null,null,null,505208,0.1133,45534.18]
[null,null,null,null,null,null,null,null,null,"FED EXM",{"$f":"IF(AND(FedHW=\"N\",FEDM=\"M\"),(FEDEXMPT1*3),IF(AND(FedHW=\"N\",FEDM<>\"M\"),(FEDEXMPT1*2),IF(FedHW=\"\",(FEDEXMPT1*FEDE),\"0\")))","v":0},null,null,null,null,"SS",true,true,0.92349999999999999,null,null,null,null,null,"1Y",0.13500000000000001,317,"NO",null,"C10",{"$f":"OPEB_10","v":0},null,328350,0.37,96489.63,null,null,null,606251,0.12429999999999999,56982.35]
["For positive employees, enter the hourly salary rate.",null,null,null,null,null,null,null,null,"ANNUALIZED GROSS",null,null,null,null,null,"MED",true,true,0.98550000000000004,null,null,null,null,null,"1Z",0.13500000000000001,317,"MED",null,"C11",{"$f":"OPEB_11","v":0},null,null,null,null,null,null,null,1000000,0.1353,105925.35]
["For negative employees, enter the monthly salary rate. For BU18 employees enter the monthly salary.",null,null,null,null,null,null,null,null,"FAN1",{"$f":"(PAYFACT*_TG1)","v":0},null,null,null,null,"NO",true,true,1,null,null,null,null,null,"20",0.1,317,"MED",null,"C12",{"$f":"OPEB_12","v":0},null,"MARRIED - HIGH WAGE (A)",null,null,null,null,null,1010417,0.14630000000000001,107334.77]
["For fractional employees, enter the full salary rate.",null,null,null,null,null,null,null,null,"FAN2",{"$f":"ROUND(PAYFACT*_TG2,2)","v":0},null,null,null,null,"SS",false,true,0.70350000000000001,null,null,null,null,null,"21",0,0,"MED",null,"C13",{"$f":"OPEB_13","v":0},null,"BASE AMT","PERCENT","BASE TAX",null,null,null,9999999,0.14630000000000001,107334.77]
["Key a decimal to reflect cents.",null,null,null,null,null,null,null,null,"FAN3",{"$f":"(PAYFACT*_TG3)","v":0},null,null,null,null,"MED",false,true,0.76549999999999996,null,null,null,null,null,"22",0,0,"MED",null,"C14",{"$f":"OPEB_14","v":0},null,-999999,0,0]
[null,null,null,null,null,null,null,null,null,null,null,null,null,null,null,"NO",false,true,0.78,null,null,null,null,null,"23",0.06,317,"MED",null,"C15",{"$f":"OPEB_15","v":0},null,16100,0.1,0,null,null,null,"TAX CREDIT TABLE"]
["Reduced Salary Rate: Enter the salary rate based on the furlough reductions.",null,null,null,null,null,null,null,null,"    TAXABLE GROSS",null,null,null,null,null,"SS",true,false,0.85750000000000004,null,null,null,null,null,"24",0.08,513,"SS",null,"C16",{"$f":"OPEB_16","v":1.4E-2},null,28500,0.12,1240,null,null,null,"MARITAL"," ------- NUMBER OF ALLOWANCES -------"]
[null,null,null,null,null,null,null,null,null,"FTG1",{"$f":"MAX(IF(FedHW<>\"\",(_FAN1-FEDEXM-Fed_Deds+Fed_Oth_Inc),(_FAN1-FEDEXM)),0)","v":0},null,null,null,null,"MED",true,false,0.91949999999999998,null,null,null,null,null,"25",0.125,513,"SS",null,"C17",{"$f":"OPEB_17","v":0},null,66500,0.22,5800,null,null,null,"STATUS",0,1,2,"OVER 2"]
["Salary Per: Enter \"M\" if salary rate is monthly or \"H\" if salary rate is hourly.",null,null,null,null,null,null,null,null,"FTG2",{"$f":"MAX(IF(FedHW<>\"\",(K57-FEDEXM-Fed_Deds+Fed_Oth_Inc),(K57-FEDEXM)),0)","v":0},null,null,null,null,"NO",true,false,0.93400000000000005,null,null,null,null,null,"27",0.08,513,"SS",null,"C18",{"$f":"OPEB_18","v":0},null,121800,0.24,17966,null,null,null,"S",0,168.3,336.6,168.3]
[null,null,null,null,null,null,null,null,null,"FTG3",{"$f":"MAX(IF(FedHW<>\"\",(K58-FEDEXM-Fed_Deds+Fed_Oth_Inc),(K58-FEDEXM)),0)","v":0},null,null,null,null,"SS = SS and Med",null,null,null,null,null,null,null,null,"2A",0.11,317,"NO",null,"C19",{"$f":"OPEB_19","v":0},null,217875,0.32,41024,null,null,null,"M/H",0,168.3,336.6,168.3]
["Collective Bargaining Unit: Using the employee's personnel information enter the first three digits",null,null,null,null,null,null,null,null,null,null,null,null,null,null,"MED = Med only",null,null,null,null,null,null,null,null,"2B",0.11,317,"MED",null,"C20",{"$f":"OPEB_20","v":0},null,272325,0.35,58448]
["of the employees' Collective Bargaining Identification designation (not the Pay Scales CBID) - example: R01,",null,null,null,null,null,null,null,null,"      BASE AMOUNT",null,null,null,null,null,"NO = Neither",null,null,null,null,null,null,null,null,"2C",0.1,513,"SS",null,"C21",{"$f":"OPEB_21","v":0},null,400450,0.37,103291.75]
["R02, R15, etc.). Exception: For Managers, Supervisors, Excluded and Confidential employee, enter \"U\".",null,null,null,null,null,null,null,null,"FBSA1",{"$f":"IF(FEDM_HW=\"M\",VLOOKUP(_FTG1,FTXTBLM,1),IF(FEDM_HW=\"A\",VLOOKUP(_FTG1,FTXTBLMHW,1),IF(FEDM_HW=\"S\",VLOOKUP(_FTG1,FTXTBLSH,1),IF(FEDM_HW=\"I\",VLOOKUP(_FTG1,FTXTBLSHW,1),IF(FEDM_HW=\"H\",VLOOKUP(_FTG1,FTXBLH,1),IF(FEDM_HW=\"E\",VLOOKUP(_FTG1,FTXTBLHHW,1)))))))","v":-999999},null,null,null,null,null,null,null,null,null,null,null,null,null,"2D",0.1,513,"SS",null,"E01",{"$f":"OPEB_01","v":0}]
[null,null,null,null,null,null,null,null,null,"FBSA2",{"$f":"IF(FEDM_HW=\"M\",VLOOKUP(_FTG2,FTXTBLM,1),IF(FEDM_HW=\"A\",VLOOKUP(_FTG2,FTXTBLMHW,1),IF(FEDM_HW=\"S\",VLOOKUP(_FTG2,FTXTBLSH,1),IF(FEDM_HW=\"I\",VLOOKUP(_FTG2,FTXTBLSHW,1),IF(FEDM_HW=\"H\",VLOOKUP(_FTG2,FTXBLH,1),IF(FEDM_HW=\"E\",VLOOKUP(_FTG2,FTXTBLHHW,1)))))))","v":-999999},null,null,null,null,null,null,null,null,null,null,null,null,null,"2E",9.5000000000000001E-2,513,"SS",null,"E02",{"$f":"OPEB_02","v":0},null,"HEAD OF HOUSEHOLD - HIGH WAGE (E)"]
["Pay Frequency: Enter \"M\" for monthly, \"S\" for semimonthly, or \"B\" for bi-weekly pay frequency.",null,null,null,null,null,null,null,null,"FBSA3",{"$f":"IF(FEDM_HW=\"M\",VLOOKUP(_FTG3,FTXTBLM,1),IF(FEDM_HW=\"A\",VLOOKUP(_FTG3,FTXTBLMHW,1),IF(FEDM_HW=\"S\",VLOOKUP(_FTG3,FTXTBLSH,1),IF(FEDM_HW=\"I\",VLOOKUP(_FTG3,FTXTBLSHW,1),IF(FEDM_HW=\"H\",VLOOKUP(_FTG3,FTXBLH,1),IF(FEDM_HW=\"E\",VLOOKUP(_FTG3,FTXTBLHHW,1)))))))","v":-999999},null,null,null,null,null,null,null,null,null,null,null,null,null,"2F",0.1,513,"SS",null,"E03",{"$f":"OPEB_03","v":0},null,"BASE AMT","PERCENT","BASE TAX"]
[null,null,null,null,null,null,null,null,null,null,null,null,null,null,null,null,null,null,null,null,null,null,null,null,"2G",9.5000000000000001E-2,513,"SS",null,"E04",{"$f":"OPEB_04","v":0},null,-999999,0,0]
["Pay Period Days: Enter total number of days in the pay period (21 or 22).",null,null,null,null,null,null,null,null,"MARGINAL TAX RATE",null,null,null,null,null,null,null,null,null,null,null,null,null,null,"2H",0.1,513,"SS",null,"E05",{"$f":"OPEB_05","v":0},null,12075,0.1,0]
[null,null,null,null,null,null,null,null,null,"FMTR1",{"$f":"IF(FEDM_HW=\"M\",VLOOKUP(_FTG1,FTXTBLM,2),IF(FEDM_HW=\"A\",VLOOKUP(_FTG1,FTXTBLMHW,2),IF(FEDM_HW=\"S\",VLOOKUP(_FTG1,FTXTBLSH,2),IF(FEDM_HW=\"I\",VLOOKUP(_FTG1,FTXTBLSHW,2),IF(FEDM_HW=\"H\",VLOOKUP(_FTG1,FTXBLH,2),IF(FEDM_HW=\"E\",VLOOKUP(_FTG1,FTXTBLHHW,2)))))))","v":0},null,null,null,null,null,null,null,null,null,null,null,null,null,"2I",0.08,513,"SS",null,"E06",{"$f":"OPEB_06","v":0.04},null,20925,0.12,885]
["Time Base Fraction: Used only for FRACTIONAL time base employees, otherwise leave the",null,null,null,null,null,null,null,null,"FMTR2",{"$f":"IF(FEDM_HW=\"M\",VLOOKUP(_FTG2,FTXTBLM,2),IF(FEDM_HW=\"A\",VLOOKUP(_FTG2,FTXTBLMHW,2),IF(FEDM_HW=\"S\",VLOOKUP(_FTG2,FTXTBLSH,2),IF(FEDM_HW=\"I\",VLOOKUP(_FTG2,FTXTBLSHW,2),IF(FEDM_HW=\"H\",VLOOKUP(_FTG2,FTXBLH,2),IF(FEDM_HW=\"E\",VLOOKUP(_FTG2,FTXTBLHHW,2)))))))","v":0},null,null,null,null,null,null,null,null,null,null,null,null,null,"2J",0.1,513,"SS",null,"E07",{"$f":"OPEB_07","v":0},null,45800,0.22,3870]
["Time Base field blank. Fractions may be entered with or without leading zeros - examples 001/002 or 1/2.",null,null,null,null,null,null,null,null,"FMTR3",{"$f":"IF(FEDM_HW=\"M\",VLOOKUP(_FTG3,FTXTBLM,2),IF(FEDM_HW=\"A\",VLOOKUP(_FTG3,FTXTBLMHW,2),IF(FEDM_HW=\"S\",VLOOKUP(_FTG3,FTXTBLSH,2),IF(FEDM_HW=\"I\",VLOOKUP(_FTG3,FTXTBLSHW,2),IF(FEDM_HW=\"H\",VLOOKUP(_FTG3,FTXBLH,2),IF(FEDM_HW=\"E\",VLOOKUP(_FTG3,FTXTBLHHW,2)))))))","v":0},null,null,null,null,null,null,null,null,null,null,null,null,null,"2K",0.09,317,"NO",null,"E08",{"$f":"OPEB_08","v":0},null,64925,0.24,8077.5]
[null,null,null,null,null,null,null,null,null,null,null,null,null,null,null,null,null,null,null,null,null,null,null,null,"2L",0.1,513,"SS",null,"E09",{"$f":"OPEB_09","v":0},null,112950,0.32,19603.5]
["Total Locked-In Pay NOT Subject to Retirement: Enter the total locked-in premium amount NOT",null,null,null,null,null,null,null,null,"  BASE TAX AMOUNT",null,null,null,null,null,null,null,null,null,null,null,null,null,null,"2M",0.08,513,"SS",null,"E10",{"$f":"OPEB_10","v":0},null,140175,0.35,28315.5]
["subject to retirement for the pay period. Leave blank if the employee does not have a locked-in",null,null,null,null,null,null,null,null,"FBST1",{"$f":"IF(FEDM_HW=\"M\",VLOOKUP(_FTG1,FTXTBLM,3),IF(FEDM_HW=\"A\",VLOOKUP(_FTG1,FTXTBLMHW,3),IF(FEDM_HW=\"S\",VLOOKUP(_FTG1,FTXTBLSH,3),IF(FEDM_HW=\"I\",VLOOKUP(_FTG1,FTXTBLSHW,3),IF(FEDM_HW=\"H\",VLOOKUP(_FTG1,FTXBLH,3),IF(FEDM_HW=\"E\",VLOOKUP(_FTG1,FTXTBLHHW,3)))))))","v":0},null,null,null,null,null,null,null,null,null,null,null,null,null,"2N",0.08,0,"SS",null,"E11",{"$f":"OPEB_11","v":0},null,332375,0.37,95585.5]
["premium pay amount not subject to retirement.",null,null,null,null,null,null,null,null,"FBST2",{"$f":"IF(FEDM_HW=\"M\",VLOOKUP(K62,FTXTBLM,3),IF(FEDM_HW=\"A\",VLOOKUP(K62,FTXTBLMHW,3),IF(FEDM_HW=\"S\",VLOOKUP(K62,FTXTBLSH,3),IF(FEDM_HW=\"I\",VLOOKUP(K62,FTXTBLSHW,3),IF(FEDM_HW=\"H\",VLOOKUP(K62,FTXBLH,3),IF(FEDM_HW=\"E\",VLOOKUP(K62,FTXTBLHHW,3)))))))","v":0},null,null,null,null,null,null,null,null,null,null,null,null,null,"2O",0.125,513,"SS",null,"E12",{"$f":"OPEB_12","v":0}]
[null,null,null,null,null,null,null,null,null,"FBST3",{"$f":"IF(FEDM_HW=\"M\",VLOOKUP(K63,FTXTBLM,3),IF(FEDM_HW=\"A\",VLOOKUP(K63,FTXTBLMHW,3),IF(FEDM_HW=\"S\",VLOOKUP(K63,FTXTBLSH,3),IF(FEDM_HW=\"I\",VLOOKUP(K63,FTXTBLSHW,3),IF(FEDM_HW=\"H\",VLOOKUP(K63,FTXBLH,3),IF(FEDM_HW=\"E\",VLOOKUP(K63,FTXTBLHHW,3)))))))","v":0},null,null,null,null,null,null,null,null,null,null,null,null,null,"2P",8.5000000000000006E-2,513,"SS",null,"E13",{"$f":"OPEB_13","v":0}]
["Retirement Account Code: Enter the two digits Account Code/Retirement ID for the employee's",null,null,null,null,null,null,null,null,null,null,null,null,null,null,null,null,null,null,null,null,null,null,null,"2Q",0.1,317,"NO",null,"E14",{"$f":"OPEB_14","v":0}]
["retirement plan in effect for the pay period being calculated. For Excluded/Exempts employee's use \"U\".",null,null,null,null,null,null,null,null," OVER BASE AMOUNT",null,null,null,null,null,null,null,null,null,null,null,null,null,null,"2R",0.08,513,"SS",null,"E15",{"$f":"OPEB_15","v":0}]
["NOTE: The appropriate Social Security and Medicare amounts will be calculated based on the",null,null,null,null,null,null,null,null,"FOVR1",{"$f":"ROUND(_FTG1-FBSA1,2)","v":999999},null,null,null,null,null,null,null,null,null,null,null,null,null,"2S",0.09,317,"NO",null,"E16",{"$f":"OPEB_16","v":1.4E-2}]
["retirement account code provided.",null,null,null,null,null,null,null,null,"FOVR2",{"$f":"ROUND(K62-K67,2)","v":999999},null,null,null,null,null,null,null,null,null,null,null,null,null,"2T",0.09,317,"MED",null,"E17",{"$f":"OPEB_17","v":0}]
[null,null,null,null,null,null,null,null,null,"FOVR3",{"$f":"(K63-K68)","v":999999},null,null,null,null,null,null,null,null,null,null,null,null,null,"2U",0.06,317,"NO",null,"E18",{"$f":"OPEB_18","v":0}]
["Pay Period: Enter the month and year of the pay period for which pay is being calculated.",null,null,null,null,null,null,null,null,null,null,null,null,null,null,null,null,null,null,null,null,null,null,null,"2V",0.09,317,"MED",null,"E19",{"$f":"OPEB_19","v":0}]
[null,null,null,null,null,null,null,null,null,"   ANNUALIZED TAX",null,null,null,null,null,null,null,null,null,null,null,null,null,null,"2W",0.09,513,"SS",null,"E20",{"$f":"OPEB_20","v":0}]
["Apply Exclusion Amt: An entry in this field is required only when calculating IDL/S for a semimonthly",null,null,null,null,null,null,null,null,"FTA1",{"$f":"MAX(IF(FedHW=\"\",(FBST1+ROUND(FOVR1*FMTR1,5)),(FBST1+ROUND((FOVR1*FMTR1)-Fed_Claim_Dpnts,5))),0)","v":0},null,null,null,null,null,null,null,null,null,null,null,null,null,"2X",0.08,513,"SS",null,"E21",{"$f":"OPEB_21","v":0}]
["employee. For all other employees, leave this field blank.",null,null,null,null,null,null,null,null,"FTA2",{"$f":"MAX(IF(FedHW=\"\",(FBST2+ROUND(FOVR2*FMTR2,5)),(FBST2+ROUND((FOVR2*FMTR2)-Fed_Claim_Dpnts,5))),0)","v":0},null,null,null,null,null,null,null,null,null,null,null,null,null,"2Y",0.08,513,"SS",null,"E48",{"$f":"OPEB_48","v":0}]
["Enter \"Y\" or \"Yes\" when the Retirement Exclusion Amount is to be applied.",null,null,null,null,null,null,null,null,"FTA3",{"$f":"MAX(IF(FedHW=\"\",(FBST3+ROUND(FOVR3*FMTR3,5)),(FBST3+ROUND((FOVR3*FMTR3)-Fed_Claim_Dpnts,5))),0)","v":0},null,null,null,null,null,null,null,null,null,null,null,null,null,"2Z",0.05,513,"SS",null,"E50",{"$f":"OPEB_50","v":0}]
["Enter \"N\" or \"No\" when the Retirement Exclusion Amount is NOT to be applied.",null,null,null,null,null,null,null,null,null,null,null,null,null,null,null,null,null,null,null,null,null,null,null,"30",0.105,317,"NO",null,"E58",{"$f":"OPEB_58","v":0}]
[null,null,null,null,null,null,null,null,null,"    PAY PERIOD TAX",null,null,null,null,null,null,null,null,null,null,null,null,null,null,"31",0.08,238,"NO",null,"E59",{"$f":"OPEB_59","v":0}]
["SDI: When the Collective Bargaining Unit ID is entered, the calculator will automatically enter a",null,null,null,null,null,null,null,null,"FTAX1",{"$f":"IF(FEDM=\"E\",0,(ROUND(_FTA1/PAYFACT,2)))","v":0},null,null,null,null,null,null,null,null,null,null,null,null,null,"32",0.08,238,"MED",null,"E67",{"$f":"OPEB_67","v":0}]
["a \"Yes\" or \"No\" in this field.",null,null,null,null,null,null,null,null,"FTAX2",{"$f":"IF(FEDM=\"E\",0,(ROUND(K87/PAYFACT,2)))","v":0},null,null,null,null,null,null,null,null,null,null,null,null,null,"33",0.01,317,"MED",null,"E68",{"$f":"OPEB_68","v":0}]
[null,null,null,null,null,null,null,null,null,"FTAX3",{"$f":"IF(FEDM=\"E\",0,(ROUND(K88/PAYFACT,2)))","v":0},null,null,null,null,null,null,null,null,null,null,null,null,null,"34",0.06,238,"NO",null,"E77",{"$f":"OPEB_77","v":0}]
["Federal Filing Status: Enter the employee's exemptions based on the first date of disability per Government ",null,null,null,null,null,null,null,null,null,null,null,null,null,null,null,null,null,null,null,null,null,null,null,"36",0.13,513,"MED",null,"E78",{"$f":"OPEB_78","v":0}]
["Code 19871 for federal tax purposes.  \"S\" for single/head of household; \"M\" for married. ",null,null,null,null,null,null,null,null,"        STATE TAXES",null,null,null,null,null,null,null,null,null,null,null,null,null,null,"37",0.08,863,"NO",null,"E79",{"$f":"OPEB_79","v":0}]
[null,null,null,null,null,null,null,null,null,"LIE",{"$f":"IF(STM=\"S\",LIES1,IF(AND(STM=\"M\",STE<2),LIEM1,IF(AND(STM=\"M\",STE>=2),LIEM2,IF(STM=\"H\",LIEH1,99999))))","v":18896},null,null,null,null,null,null,null,null,null,null,null,null,null,"39",0.08,238,"NO",null,"E88",{"$f":"OPEB_88","v":2.3E-2}]
["Total Fed Exemptions: Enter the total number of federal exemptions based on the first date of disability per ",null,null,null,null,null,null,null,null,"ADDALLOW1",{"$f":"(STA*SADDALL1)","v":0},null,null,null,null,null,null,null,null,null,null,null,null,null,"3A",0.13,863,"NO",null,"E89",{"$f":"OPEB_89","v":2.3E-2}]
["Government Code 19871 for federal tax purposes.  If the employee claims exempt from federal taxes, ",null,null,null,null,null,null,null,null,"SDED1",{"$f":"IF(STM=\"S\",_SDS1,IF(AND(STM=\"M\",STE<2),_SDM1,IF(AND(STM=\"M\",STE>=2),_SDM2,IF(STM=\"H\",_SDH1,0))))","v":5706},null,null,null,null,null,null,null,null,null,null,null,null,null,"3B",0.13,863,"MED",null,"E97",{"$f":"OPEB_97","v":0}]
["enter \"99\". ",null,null,null,null,null,null,null,null,"TXCRB",{"$f":"IF(AND(B17=\"S\",D17=0),AN62,IF(AND(B17=\"S\",D17=1),AO62,IF(AND(B17=\"S\",D17>=2),AP62,IF(AND(B17=\"M\",D17=0),AN63,IF(OR(AND(B17=\"M\",B17=\"H\"),D17=1),AO63,IF(OR(AND(B17=\"M\",B17=\"H\"),D17>=2),AP63,0))))))","v":0},null,null,null,null,null,null,null,null,null,null,null,null,null,"3C",0.13,863,"NO",null,"E98",{"$f":"OPEB_98","v":0}]
[null,null,null,null,null,null,null,null,null,"TXCROV",{"$f":"IF(STE<3,0,STE-2)","v":0},null,null,null,null,null,null,null,null,null,null,null,null,null,"3D",0.13,863,"MED",null,"E99",{"$f":"OPEB_99","v":0}]
["Federal High Wage-Enter Y (Yes) for higher tax withholding, enter N (No) for not to higher tax withholding.",null,null,null,null,null,null,null,null,"TXCRR",{"$f":"IF(STM=\"S\",TCRS3,TCRM3)","v":168.3},null,null,null,null,null,null,null,null,null,null,null,null,null,"3E",0.13,863,"NO",null,"M01",{"$f":"OPEB_01","v":0}]
["This field must be completed when using revised STD 686 or STD 457 effective 12/2020.",null,null,null,null,null,null,null,null,"TXCREDIT",{"$f":"(TXCRB+(TXCROV*TXCRR))","v":0},null,null,null,null,null,null,null,null,null,null,null,null,null,"3F",0.13,863,"MED",null,"M02",{"$f":"OPEB_02","v":0}]
[null,null,null,null,null,null,null,null,null,null,null,null,null,null,null,null,null,null,null,null,null,null,null,null,"3G",0.13250000000000001,0,"NO",null,"M03",{"$f":"OPEB_03","v":0}]
["Federal Claim Dependents-Enter annual amount for Child Tax Credit and the credits for other dependents.",null,null,null,null,null,null,null,null,"STATE ANNUALIZED TAXABLE GROSS",null,null,null,null,null,null,null,null,null,null,null,null,null,null,"3H",0.13250000000000001,0,"MED",null,"M04",{"$f":"OPEB_04","v":0}]
["This field must be completed when using revised STD 686 or STD 457 effective 12/2020.",null,null,null,null,null,null,null,null,"STG1",{"$f":"IF((PAYFACT*_TG1)-ADDALLOW1-SDED1<=0,0,(PAYFACT*_TG1)-ADDALLOW1-SDED1)","v":0},null,null,null,null,null,null,null,null,null,null,null,null,null,"3J",9.5000000000000001E-2,317,"NO",null,"M05",{"$f":"OPEB_05","v":0}]
[null,null,null,null,null,null,null,null,null,"STG2",{"$f":"IF((PAYFACT*_TG2)-ADDALLOW1-SDED1<=0,0,(PAYFACT*_TG2)-ADDALLOW1-SDED1)","v":0},null,null,null,null,null,null,null,null,null,null,null,null,null,"3K",0.09,513,"SS",null,"M06",{"$f":"OPEB_06","v":0.04}]
["Federal Other Income-Enter dollar amount for other income for the year, do not include income from other jobs.",null,null,null,null,null,null,null,null,"STG3",{"$f":"IF((PAYFACT*_TG3)-ADDALLOW1-SDED1<=0,0,(PAYFACT*_TG3)-ADDALLOW1-SDED1)","v":0},null,null,null,null,null,null,null,null,null,null,null,null,null,"3L",0.11,863,"NO",null,"M07",{"$f":"OPEB_07","v":0}]
["This field must be completed when using revised STD 686 or STD 457 effective 12/2020.",null,null,null,null,null,null,null,null,null,null,null,null,null,null,null,null,null,null,null,null,null,null,null,"3M",0.13,863,"MED",null,"M08",{"$f":"OPEB_08","v":0}]
[null,null,null,null,null,null,null,null,null,"       BASE AMOUNT",null,null,null,null,null,null,null,null,null,null,null,null,null,null,"3N",0.08,238,"NO",null,"M09",{"$f":"OPEB_09","v":0}]
["Federal Deductions-Enter amount for other than the basic standard deductions.",null,null,null,null,null,null,null,null,"SBSA1",{"$f":"IF(STM=\"S\",VLOOKUP(_STG1,STXTBLS1,1),IF(STM=\"M\",VLOOKUP(_STG1,STXTBLM1,1),IF(STM=\"H\",VLOOKUP(_STG1,STXTBLH1,1),0)))","v":0},null,null,null,null,null,null,null,null,null,null,null,null,null,"3P",0.08,238,"MED",null,"M10",{"$f":"OPEB_10","v":0}]
["This field must be completed when using revised STD 686 or STD 457 effective 12/2020.",null,null,null,null,null,null,null,null,"SBSA2",{"$f":"IF(STM=\"S\",VLOOKUP(K106,STXTBLS1,1),IF(STM=\"M\",VLOOKUP(K106,STXTBLM1,1),IF(STM=\"H\",VLOOKUP(K106,STXTBLH1,1),0)))","v":0},null,null,null,null,null,null,null,null,null,null,null,null,null,"3Q",0.08,238,"NO",null,"M11",{"$f":"OPEB_11","v":0}]
[null,null,null,null,null,null,null,null,null,"SBSA3",{"$f":"IF(STM=\"S\",VLOOKUP(K107,STXTBLS1,1),IF(STM=\"M\",VLOOKUP(K107,STXTBLM1,1),IF(STM=\"H\",VLOOKUP(K107,STXTBLH1,1),0)))","v":0},null,null,null,null,null,null,null,null,null,null,null,null,null,"3R",0.08,238,"MED",null,"M12",{"$f":"OPEB_12","v":0}]
["State Filing Status: Enter the employee's filing status based on the first date of disability per Government ",null,null,null,null,null,null,null,null,null,null,null,null,null,null,null,null,null,null,null,null,null,null,null,"3S",0.125,863,"NO",null,"M13",{"$f":"OPEB_13","v":0}]
["Code 19871 for state tax purposes.  (NOTE: This calculates only the California state tax).  \"S\" for ",null,null,null,null,null,null,null,null," MARGINAL TAX RATE",null,null,null,null,null,null,null,null,null,null,null,null,null,null,"3T",0.13,863,"MED",null,"M14",{"$f":"OPEB_14","v":0}]
["single; \"H\" for head of household; \"M\" for married. ",null,null,null,null,null,null,null,null,"SMTR1",{"$f":"IF(STM=\"S\",VLOOKUP(_STG1,STXTBLS1,2),IF(STM=\"M\",VLOOKUP(_STG1,STXTBLM1,2),IF(STM=\"H\",VLOOKUP(_STG1,STXTBLH1,2),0)))","v":1.0999999999999999E-2},null,null,null,null,null,null,null,null,null,null,null,null,null,"3U",0.125,863,"NO",null,"M15",{"$f":"OPEB_15","v":0}]
[null,null,null,null,null,null,null,null,null,"SMTR2",{"$f":"IF(STM=\"S\",VLOOKUP(K106,STXTBLS1,2),IF(STM=\"M\",VLOOKUP(K106,STXTBLM1,2),IF(STM=\"H\",VLOOKUP(K106,STXTBLH1,2),0)))","v":1.0999999999999999E-2},null,null,null,null,null,null,null,null,null,null,null,null,null,"3V",0.125,863,"MED",null,"M16",{"$f":"OPEB_16","v":1.4E-2}]
["Reg State Allowance: Enter the number of regular state allowances (Standard Deductions) based on the",null,null,null,null,null,null,null,null,"SMTR3",{"$f":"IF(STM=\"S\",VLOOKUP(K107,STXTBLS1,2),IF(STM=\"M\",VLOOKUP(K107,STXTBLM1,2),IF(STM=\"H\",VLOOKUP(K107,STXTBLH1,2),0)))","v":1.0999999999999999E-2},null,null,null,null,null,null,null,null,null,null,null,null,null,"3W",0.13250000000000001,0,"NO",null,"M17",{"$f":"OPEB_17","v":0}]
["first date of disability per Government Code 19871 for state tax purposes.  If the employee claims exempt",null,null,null,null,null,null,null,null,null,null,null,null,null,null,null,null,null,null,null,null,null,null,null,"3X",0.1,513,"NO",null,"M18",{"$f":"OPEB_18","v":0}]
["from state taxes, enter \"99\". ",null,null,null,null,null,null,null,null,"   BASE TAX AMOUNT",null,null,null,null,null,null,null,null,null,null,null,null,null,null,"3Y",0.13,513,"MED",null,"M19",{"$f":"OPEB_19","v":0}]
[null,null,null,null,null,null,null,null,null,"SBST1",{"$f":"IF(STM=\"S\",VLOOKUP(_STG1,STXTBLS1,3),IF(STM=\"M\",VLOOKUP(_STG1,STXTBLM1,3),IF(STM=\"H\",VLOOKUP(_STG1,STXTBLH1,3),0)))","v":0},null,null,null,null,null,null,null,null,null,null,null,null,null,"3Z",0.13250000000000001,0,"MED",null,"M20",{"$f":"OPEB_20","v":0}]
["Additional Exemptions State: Enter the number of additional state allowances based on the first date of",null,null,null,null,null,null,null,null,"SBST2",{"$f":"IF(STM=\"S\",VLOOKUP(K106,STXTBLS1,3),IF(STM=\"M\",VLOOKUP(K106,STXTBLM1,3),IF(STM=\"H\",VLOOKUP(K106,STXTBLH1,3),0)))","v":0},null,null,null,null,null,null,null,null,null,null,null,null,null,"40",0.105,317,"NO",null,"M21",{"$f":"OPEB_21","v":0}]
["disability per Government Code 19871 for state tax purposes.  If the employee claims exempt from ",null,null,null,null,null,null,null,null,"SBST3",{"$f":"IF(STM=\"S\",VLOOKUP(K107,STXTBLS1,3),IF(STM=\"M\",VLOOKUP(K107,STXTBLM1,3),IF(STM=\"H\",VLOOKUP(K107,STXTBLH1,3),0)))","v":0},null,null,null,null,null,null,null,null,null,null,null,null,null,"41",3.7499999999999999E-2,0,"SS",null,"NON",{"$f":"+OPEB_ON","v":0}]
["state taxes, leave field BLANK. ",null,null,null,null,null,null,null,null,null,null,null,null,null,null,null,null,null,null,null,null,null,null,null,"42",0.06,317,"MED",null,"R01",{"$f":"OPEB_01","v":0}]
[null,null,null,null,null,null,null,null,null,"  OVER BASE AMOUNT",null,null,null,null,null,null,null,null,null,null,null,null,null,null,"43",0.05,513,"SS",null,"R02",{"$f":"OPEB_02","v":0}]
["Issue Month and Year: Enter the calendar month/year that corresponds to the Issue Date of the",null,null,null,null,null,null,null,null,"SOVR1",{"$f":"ROUND(_STG1-SBSA1,2)","v":0},null,null,null,null,null,null,null,null,null,null,null,null,null,"44",3.7499999999999999E-2,0,"SS",null,"R03",{"$f":"OPEB_03","v":0}]
["payment.",null,null,null,null,null,null,null,null,"SOVR2",{"$f":"ROUND(K106-K111,2)","v":0},null,null,null,null,null,null,null,null,null,null,null,null,null,"45",0.08,513,"SS",null,"R04",{"$f":"OPEB_04","v":0}]
[null,null,null,null,null,null,null,null,null,"SOVR3",{"$f":"ROUND(K107-K112,2)","v":0},null,null,null,null,null,null,null,null,null,null,null,null,null,"46",0.06,317,"NO",null,"R05",{"$f":"OPEB_05","v":0}]
["For semi-monthly first half pay period IDL/S calculations, enter the pay period and year of the",null,null,null,null,null,null,null,null,null,null,null,null,null,null,null,null,null,null,null,null,null,null,null,"47",3.7499999999999999E-2,0,"SS",null,"R06",{"$f":"OPEB_06","v":0.04}]
["Regular Pay payment. For all other IDL/S calculations (second half and monthly pay periods),",null,null,null,null,null,null,null,null,"     ANNUALIZED TAX",null,null,null,null,null,null,null,null,null,null,null,null,null,null,"48",0.06,317,"MED",null,"R07",{"$f":"OPEB_07","v":0}]
["enter the next month and year of the Reguar Pay payment's pay period.",null,null,null,null,null,null,null,null,"STA1",{"$f":"(SBST1+ROUND(SOVR1*SMTR1,5))","v":0},null,null,null,null,null,null,null,null,null,null,null,null,null,"49",9.5000000000000001E-2,513,"SS",null,"R08",{"$f":"OPEB_08","v":0}]
[null,null,null,null,null,null,null,null,null,"STA2",{"$f":"(K121+ROUND(K126*SMTR2,5))","v":0},null,null,null,null,null,null,null,null,null,null,null,null,null,"4A",8.5000000000000006E-2,513,"SS",null,"R09",{"$f":"OPEB_09","v":0}]
["Example: For the first half of the 05/2009 pay period, enter 05/09. For the second half of the",null,null,null,null,null,null,null,null,"STA3",{"$f":"(K122+ROUND(K127*SMTR3,5))","v":0},null,null,null,null,null,null,null,null,null,null,null,null,null,"4B",0.08,513,"SS",null,"R10",{"$f":"OPEB_10","v":0}]
["05/2009 pay period of the monthly pay period with an issue date of 06/01/09, enter 06/09.",null,null,null,null,null,null,null,null,null,null,null,null,null,null,null,null,null,null,null,null,null,null,null,"4C",0.06,317,"NO",null,"R11",{"$f":"OPEB_11","v":0}]
[null,null,null,null,null,null,null,null,null,"     PAY PERIOD TAX",null,null,null,null,null,null,null,null,null,null,null,null,null,null,"4D",3.7499999999999999E-2,0,"SS",null,"R12",{"$f":"OPEB_12","v":0}]
["Regular Pay: Enter the days and/or hours for regular pay in the pay period.",null,null,null,null,null,null,null,null,"STAX1",{"$f":"IF(OR(_TG1*PAYFACT<=LIE,(_STA1-TXCREDIT)/PAYFACT<=0),0,IF(_STA1-TXCREDIT/PAYFACT>0,ROUND((_STA1-TXCREDIT)/PAYFACT,2)))","v":0},null,null,null,null,null,null,null,null,null,null,null,null,null,"4E",3.7499999999999999E-2,0,"SS",null,"R13",{"$f":"OPEB_13","v":0}]
[null,null,null,null,null,null,null,null,null,"STAX2",{"$f":"IF(OR(_TG2*PAYFACT<=LIE,(K131-TXCREDIT)/PAYFACT<=0),0,IF(K131-TXCREDIT/PAYFACT>0,ROUND((K131-TXCREDIT)/PAYFACT,2)))","v":0},null,null,null,null,null,null,null,null,null,null,null,null,null,"4F",3.7499999999999999E-2,0,"SS",null,"R14",{"$f":"OPEB_14","v":0}]
["IDL Full Pay: Enter the days and/or hours for IDL Full in the pay period.",null,null,null,null,null,null,null,null,"STAX3",{"$f":"IF(OR(_TG3*PAYFACT<=LIE,(K132-TXCREDIT)/PAYFACT<=0),0,IF(K132-TXCREDIT/PAYFACT>0,ROUND((K132-TXCREDIT)/PAYFACT,2)))","v":0},null,null,null,null,null,null,null,null,null,null,null,null,null,"4G",0.09,513,"SS",null,"R15",{"$f":"OPEB_15","v":0}]
[null,null,null,null,null,null,null,null,null,null,null,null,null,null,null,null,null,null,null,null,null,null,null,null,"4H",0.09,513,"SS"," ","R16",{"$f":"OPEB_16","v":1.4E-2}]
["IDL 2/3 Pay: Enter the days and/or hours for IDL 2/3's in the pay period.",null,null,null,null,null,null,null,null,null,null,null,null,null,null,null,null,null,null,null,null,null,null,null,"4J",0.03,513,"SS"," ","R17",{"$f":"OPEB_17","v":0}]
[null,null,null,null,null,null,null,null,null,null,null,null,null,null,null,null,null,null,null,null,null,null,null,null,"4K",7.0000000000000007E-2,317,"NO"," ","R18",{"$f":"OPEB_18","v":0}]
["After entering and verifying the required fields, click the \"Calculate IDLS\" button.",null,null,null,null,null,null,null,null,null,null,null,null,null,null,null,null,null,null,null,null,null,null,null,"4L",0.08,513,"SS"," ","R19",{"$f":"OPEB_19","v":0}]
[null,null,null,null,null,null,null,null,null,null,null,null,null,null,null,null,null,null,null,null,null,null,null,null,"4M",0.11,317,"NO"," ","R20",{"$f":"OPEB_20","v":0}]
["To reset the input fields, click the \"Reset Fields\" button.",null,null,null,null,null,null,null,null,null,null,null,null,null,null,null,null,null,null,null,null,null,null,null,"4N",0.11,317,"MED"," ","R21",{"$f":"OPEB_21","v":0}]
[null,null,null,null,null,null,null,null,null,null,null,null,null,null,null,null,null,null,null,null,null,null,null,null,"4P",0.08,513,"SS"," ","S01",{"$f":"OPEB_01","v":0}]
[null,null,null,null,null,null,null,null,null,null,null,null,null,null,null,null,null,null,null,null,null,null,null,null,"4Q",0.08,513,"SS"," ","S02",{"$f":"OPEB_02","v":0}]
[null,null,null,null,null,null,null,null,null,null,null,null,null,null,null,null,null,null,null,null,null,null,null,null,"4R",3.7499999999999999E-2,0,"SS",null,"S03",{"$f":"OPEB_03","v":0}]
[null,null,null,null,null,null,null,null,null,null,null,null,null,null,null,null,null,null,null,null,null,null,null,null,"4S",3.7499999999999999E-2,0,"SS",null,"S04",{"$f":"OPEB_04","v":0}]
[null,null,null,null,null,null,null,null,null,null,null,null,null,null,null,null,null,null,null,null,null,null,null,null,"4T",0.1,513,"SS",null,"S05",{"$f":"OPEB_05","v":0}]
[null,null,null,null,null,null,null,null,null,null,null,null,null,null,null,null,null,null,null,null,null,null,null,null,"4U",0.08,0,"NO",null,"S06",{"$f":"OPEB_06","v":0.04}]
[null,null,null,null,null,null,null,null,null,null,null,null,null,null,null,null,null,null,null,null,null,null,null,null,"4V",0.08,513,"SS",null,"S07",{"$f":"OPEB_07","v":0}]
[null,null,null,null,null,null,null,null,null,null,null,null,null,null,null,null,null,null,null,null,null,null,null,null,"4W",0.1,513,"SS",null,"S08",{"$f":"OPEB_08","v":0}]
[null,null,null,null,null,null,null,null,null,null,null,null,null,null,null,null,null,null,null,null,null,null,null,null,"4X",9.5000000000000001E-2,513,"SS",null,"S09",{"$f":"OPEB_09","v":0}]
[null,null,null,null,null,null,null,null,null,null,null,null,null,null,null,null,null,null,null,null,null,null,null,null,"4Y",3.7499999999999999E-2,0,"SS",null,"S10",{"$f":"OPEB_10","v":0}]
[null,null,null,null,null,null,null,null,null,null,null,null,null,null,null,null,null,null,null,null,null,null,null,null,"4Z",0,0,"SS"," ","S11",{"$f":"OPEB_11","v":0}]
[null,null,null,null,null,null,null,null,null,null,null,null,null,null,null,null,null,null,null,null,null,null,null,null,"50",0.08,238,"MED"," ","S12",{"$f":"OPEB_12","v":0}]
[null,null,null,null,null,null,null,null,null,null,null,null,null,null,null,null,null,null,null,null,null,null,null,null,"51",0.08,238,"NO"," ","S13",{"$f":"OPEB_13","v":0}]
[null,null,null,null,null,null,null,null,null,null,null,null,null,null,null,null,null,null,null,null,null,null,null,null,"52",0.08,238,"MED"," ","S14",{"$f":"OPEB_14","v":0}]
[null,null,null,null,null,null,null,null,null,null,null,null,null,null,null,null,null,null,null,null,null,null,null,null,"53",0.08,238,"NO",null,"S15",{"$f":"OPEB_15","v":0}]
[null,null,null,null,null,null,null,null,null,null,null,null,null,null,null,null,null,null,null,null,null,null,null,null,"54",0.08,238,"MED"," ","S16",{"$f":"OPEB_16","v":1.4E-2}]
[null,null,null,null,null,null,null,null,null,null,null,null,null,null,null,null,null,null,null,null,null,null,null,null,"55",0.13,863,"NO"," ","S17",{"$f":"OPEB_17","v":0}]
[null,null,null,null,null,null,null,null,null,null,null,null,null,null,null,null,null,null,null,null,null,null,null,null,"56",0.08,863,"MED"," ","S18",{"$f":"OPEB_18","v":0}]
[null,null,null,null,null,null,null,null,null,null,null,null,null,null,null,null,null,null,null,null,null,null,null,null,"57",0.08,513,"NO"," ","S19",{"$f":"OPEB_19","v":0}]
[null,null,null,null,null,null,null,null,null,null,null,null,null,null,null,null,null,null,null,null,null,null,null,null,"58",0.08,513,"MED"," ","S20",{"$f":"OPEB_20","v":0}]
[null,null,null,null,null,null,null,null,null,null,null,null,null,null,null,null,null,null,null,null,null,null,null,null,"5A",0.06,513,"NO"," ","S21",{"$f":"OPEB_21","v":0}]
[null,null,null,null,null,null,null,null,null,null,null,null,null,null,null,null,null,null,null,null,null,null,null,null,"5B",0.15,863,"MED"," "]
[null,null,null,null,null,null,null,null,null,null,null,null,null,null,null,null,null,null,null,null,null,null,null,null,"5C",0.13,513,"NO"," "]
[null,null,null,null,null,null,null,null,null,null,null,null,null,null,null,null,null,null,null,null,null,null,null,null,"5D",0.13,513,"MED"," "]
[null,null,null,null,null,null,null,null,null,null,null,null,null,null,null,null,null,null,null,null,null,null,null,null,"5E",0.13,513,"NO"," "]
[null,null,null,null,null,null,null,null,null,null,null,null,null,null,null,null,null,null,null,null,null,null,null,null,"5F",0.13,513,"MED"," "]
[null,null,null,null,null,null,null,null,null,null,null,null,null,null,null,null,null,null,null,null,null,null,null,null,"5G",0.13,513,"NO"]
[null,null,null,null,null,null,null,null,null,null,null,null,null,null,null,null,null,null,null,null,null,null,null,null,"5H",0.13,513,"MED"]
[null,null,null,null,null,null,null,null,null,null,null,null,null,null,null,null,null,null,null,null,null,null,null,null,"5J",0.13,863,"NO"]
[null,null,null,null,null,null,null,null,null,null,null,null,null,null,null,null,null,null,null,null,null,null,null,null,"5K",0.13,863,"MED"]
[null,null,null,null,null,null,null,null,null,null,null,null,null,null,null,null,null,null,null,null,null,null,null,null,"5L",0.06,513,"NO"," "]
[null,null,null,null,null,null,null,null,null,null,null,null,null,null,null,null,null,null,null,null,null,null,null,null,"5M",0.06,513,"MED"," "]
[null,null,null,null,null,null,null,null,null,null,null,null,null,null,null,null,null,null,null,null,null,null,null,null,"5N",0.15,513,"MED"," "]
[null,null,null,null,null,null,null,null,null,null,null,null,null,null,null,null,null,null,null,null,null,null,null,null,"5R",0.14000000000000001,513,"MED"," "]
[null,null,null,null,null,null,null,null,null,null,null,null,null,null,null,null,null,null,null,null,null,null,null,null,"5S",0.15,513,"NO"," "]
[null,null,null,null,null,null,null,null,null,null,null,null,null,null,null,null,null,null,null,null,null,null,null,null,"5V",0.13,513,"MED"," "]
[null,null,null,null,null,null,null,null,null,null,null,null,null,null,null,null,null,null,null,null,null,null,null,null,"5W",0.11,863,"NO"," "]
[null,null,null,null,null,null,null,null,null,null,null,null,null,null,null,null,null,null,null,null,null,null,null,null,"5X",0.13,863,"MED"," "]
[null,null,null,null,null,null,null,null,null,null,null,null,null,null,null,null,null,null,null,null,null,null,null,null,"5Y",0.11,513,"NO"]
[null,null,null,null,null,null,null,null,null,null,null,null,null,null,null,null,null,null,null,null,null,null,null,null,"61",0.14499999999999999,863,"MED"]
[null,null,null,null,null,null,null,null,null,null,null,null,null,null,null,null,null,null,null,null,null,null,null,null,"62",0.125,863,"NO"]
[null,null,null,null,null,null,null,null,null,null,null,null,null,null,null,null,null,null,null,null,null,null,null,null,"63",0.08,238,"MED"]
[null,null,null,null,null,null,null,null,null,null,null,null,null,null,null,null,null,null,null,null,null,null,null,null,"64",0.08,317,"NO"]
[null,null,null,null,null,null,null,null,null,null,null,null,null,null,null,null,null,null,null,null,null,null,null,null,"67",0.01,317,"MED"]
[null,null,null,null,null,null,null,null,null,null,null,null,null,null,null,null,null,null,null,null,null,null,null,null,"68",0.01,317,"NO"]
[null,null,null,null,null,null,null,null,null,null,null,null,null,null,null,null,null,null,null,null,null,null,null,null,"6J",0.115,317,"MED"]
[null,null,null,null,null,null,null,null,null,null,null,null,null,null,null,null,null,null,null,null,null,null,null,null,"6K",0.11,317,"NO"]
[null,null,null,null,null,null,null,null,null,null,null,null,null,null,null,null,null,null,null,null,null,null,null,null,"6L",0.11,317,"MED"]
[null,null,null,null,null,null,null,null,null,null,null,null,null,null,null,null,null,null,null,null,null,null,null,null,"6M",7.0000000000000007E-2,317,"NO"]
[null,null,null,null,null,null,null,null,null,null,null,null,null,null,null,null,null,null,null,null,null,null,null,null,"6P",0.11,317,"MED"]
[null,null,null,null,null,null,null,null,null,null,null,null,null,null,null,null,null,null,null,null,null,null,null,null,"6R",0.11,317,"NO"]
[null,null,null,null,null,null,null,null,null,null,null,null,null,null,null,null,null,null,null,null,null,null,null,null,"6S",0.14499999999999999,863,"NO"]
[null,null,null,null,null,null,null,null,null,null,null,null,null,null,null,null,null,null,null,null,null,null,null,null,"6T",0.14499999999999999,863,"MED"]
[null,null,null,null,null,null,null,null,null,null,null,null,null,null,null,null,null,null,null,null,null,null,null,null,"6V",0.1,317,"MED"]
[null,null,null,null,null,null,null,null,null,null,null,null,null,null,null,null,null,null,null,null,null,null,null,null,"6W",0.1,317,"NO"]
[null,null,null,null,null,null,null,null,null,null,null,null,null,null,null,null,null,null,null,null,null,null,null,null,"6X",0.13500000000000001,317,"NO"]
[null,null,null,null,null,null,null,null,null,null,null,null,null,null,null,null,null,null,null,null,null,null,null,null,"6Y",0.13500000000000001,317,"MED"]
[null,null,null,null,null,null,null,null,null,null,null,null,null,null,null,null,null,null,null,null,null,null,null,null,"6Z",0.13500000000000001,317,"MED"]
[null,null,null,null,null,null,null,null,null,null,null,null,null,null,null,null,null,null,null,null,null,null,null,null,"7A",0.115,317,"MED"]
[null,null,null,null,null,null,null,null,null,null,null,null,null,null,null,null,null,null,null,null,null,null,null,null,"7B",0.115,317,"NO"]
[null,null,null,null,null,null,null,null,null,null,null,null,null,null,null,null,null,null,null,null,null,null,null,null,"7C",0.115,317,"MED"]
[null,null,null,null,null,null,null,null,null,null,null,null,null,null,null,null,null,null,null,null,null,null,null,null,"7D",0.115,317,"MED"]
[null,null,null,null,null,null,null,null,null,null,null,null,null,null,null,null,null,null,null,null,null,null,null,null,"7E",0.115,317,"MED"]
[null,null,null,null,null,null,null,null,null,null,null,null,null,null,null,null,null,null,null,null,null,null,null,null,"7F",0.115,317,"NO"]
[null,null,null,null,null,null,null,null,null,null,null,null,null,null,null,null,null,null,null,null,null,null,null,null,"7G",0.115,317,"MED"]
[null,null,null,null,null,null,null,null,null,null,null,null,null,null,null,null,null,null,null,null,null,null,null,null,"7H",0.115,317,"NO"]
[null,null,null,null,null,null,null,null,null,null,null,null,null,null,null,null,null,null,null,null,null,null,null,null,"7I",0.115,317,"MED"]
[null,null,null,null,null,null,null,null,null,null,null,null,null,null,null,null,null,null,null,null,null,null,null,null,"7J",0.115,317,"MED"]
[null,null,null,null,null,null,null,null,null,null,null,null,null,null,null,null,null,null,null,null,null,null,null,null,"7K",0.115,317,"MED"]
[null,null,null,null,null,null,null,null,null,null,null,null,null,null,null,null,null,null,null,null,null,null,null,null,"7L",0.115,317,"MED"]
[null,null,null,null,null,null,null,null,null,null,null,null,null,null,null,null,null,null,null,null,null,null,null,null,"82",0.06,317,"MED"]
[null,null,null,null,null,null,null,null,null,null,null,null,null,null,null,null,null,null,null,null,null,null,null,null,"83",0.06,317,"NO"]
[null,null,null,null,null,null,null,null,null,null,null,null,null,null,null,null,null,null,null,null,null,null,null,null,"86",0,238,"NO"]
[null,null,null,null,null,null,null,null,null,null,null,null,null,null,null,null,null,null,null,null,null,null,null,null,"87",0.08,238,"NO"]
[null,null,null,null,null,null,null,null,null,null,null,null,null,null,null,null,null,null,null,null,null,null,null,null,"88",0,238,"MED"]
[null,null,null,null,null,null,null,null,null,null,null,null,null,null,null,null,null,null,null,null,null,null,null,null,"89",0.08,238,"MED"]
[null,null,null,null,null,null,null,null,null,null,null,null,null,null,null,null,null,null,null,null,null,null,null,null,"91",0,0,"NO"]
[null,null,null,null,null,null,null,null,null,null,null,null,null,null,null,null,null,null,null,null,null,null,null,null,"92",0,0,"NO"]
[null,null,null,null,null,null,null,null,null,null,null,null,null,null,null,null,null,null,null,null,null,null,null,null,"93",0.01,317,"NO"]
[null,null,null,null,null,null,null,null,null,null,null,null,null,null,null,null,null,null,null,null,null,null,null,null,"94",0.05,513,"SS"]
[null,null,null,null,null,null,null,null,null,null,null,null,null,null,null,null,null,null,null,null,null,null,null,null,"95",3.7499999999999999E-2,0,"SS"]
[null,null,null,null,null,null,null,null,null,null,null,null,null,null,null,null,null,null,null,null,null,null,null,null,"96",3.7499999999999999E-2,0,"SS"]
[null,null,null,null,null,null,null,null,null,null,null,null,null,null,null,null,null,null,null,null,null,null,null,null,"97",0.01,317,"MED"]
[null,null,null,null,null,null,null,null,null,null,null,null,null,null,null,null,null,null,null,null,null,null,null,null,"98",1.4999999999999999E-2,0,"MED"]
[null,null,null,null,null,null,null,null,null,null,null,null,null,null,null,null,null,null,null,null,null,null,null,null,"99",0,513,"SS"]
[null,null,null,null,null,null,null,null,null,null,null,null,null,null,null,null,null,null,null,null,null,null,null,null,"9A",0.09,513,"SS"]
[null,null,null,null,null,null,null,null,null,null,null,null,null,null,null,null,null,null,null,null,null,null,null,null,"9B",0.09,513,"SS"]
[null,null,null,null,null,null,null,null,null,null,null,null,null,null,null,null,null,null,null,null,null,null,null,null,"9C",0.09,513,"SS"]
[null,null,null,null,null,null,null,null,null,null,null,null,null,null,null,null,null,null,null,null,null,null,null,null,"9D",3.7499999999999999E-2,0,"SS"]
[null,null,null,null,null,null,null,null,null,null,null,null,null,null,null,null,null,null,null,null,null,null,null,null,"9E",0.105,317,"NO"]
[null,null,null,null,null,null,null,null,null,null,null,null,null,null,null,null,null,null,null,null,null,null,null,null,"9F",0.11,317,"MED"]
[null,null,null,null,null,null,null,null,null,null,null,null,null,null,null,null,null,null,null,null,null,null,null,null,"9G",0.1,513,"SS"]
[null,null,null,null,null,null,null,null,null,null,null,null,null,null,null,null,null,null,null,null,null,null,null,null,"9H",0.11,317,"NO"]
[null,null,null,null,null,null,null,null,null,null,null,null,null,null,null,null,null,null,null,null,null,null,null,null,"9J",0.105,317,"MED"]
[null,null,null,null,null,null,null,null,null,null,null,null,null,null,null,null,null,null,null,null,null,null,null,null,"9K",0.05,513,"SS"]
[null,null,null,null,null,null,null,null,null,null,null,null,null,null,null,null,null,null,null,null,null,null,null,null,"9L",9.5000000000000001E-2,513,"SS"]
[null,null,null,null,null,null,null,null,null,null,null,null,null,null,null,null,null,null,null,null,null,null,null,null,"9M",0.1,513,"SS"]
[null,null,null,null,null,null,null,null,null,null,null,null,null,null,null,null,null,null,null,null,null,null,null,null,"9N",0.09,513,"SS"]
[null,null,null,null,null,null,null,null,null,null,null,null,null,null,null,null,null,null,null,null,null,null,null,null,"9P",0.09,513,"SS"]
[null,null,null,null,null,null,null,null,null,null,null,null,null,null,null,null,null,null,null,null,null,null,null,null,"9R",8.5000000000000006E-2,513,"NO"]
[null,null,null,null,null,null,null,null,null,null,null,null,null,null,null,null,null,null,null,null,null,null,null,null,"9S",0.105,317,"MED"]
[null,null,null,null,null,null,null,null,null,null,null,null,null,null,null,null,null,null,null,null,null,null,null,null,"9T",0.1,317,"NO"]
[null,null,null,null,null,null,null,null,null,null,null,null,null,null,null,null,null,null,null,null,null,null,null,null,"9V",0.1,317,"MED"]
[null,null,null,null,null,null,null,null,null,null,null,null,null,null,null,null,null,null,null,null,null,null,null,null,"9W",0.09,513,"SS"]
[null,null,null,null,null,null,null,null,null,null,null,null,null,null,null,null,null,null,null,null,null,null,null,null,"9X",0.09,513,"SS"]
[null,null,null,null,null,null,null,null,null,null,null,null,null,null,null,null,null,null,null,null,null,null,null,null,"9Y",8.5000000000000006E-2,513,"SS"]
[null,null,null,null,null,null,null,null,null,null,null,null,null,null,null,null,null,null,null,null,null,null,null,null,"AA",0.1,513,"SS"]
[null,null,null,null,null,null,null,null,null,null,null,null,null,null,null,null,null,null,null,null,null,null,null,null,"AB",0.1,513,"SS"]
[null,null,null,null,null,null,null,null,null,null,null,null,null,null,null,null,null,null,null,null,null,null,null,null,"AC",0.1,513,"SS"]
[null,null,null,null,null,null,null,null,null,null,null,null,null,null,null,null,null,null,null,null,null,null,null,null,"AE",0.1,513,"SS"]
[null,null,null,null,null,null,null,null,null,null,null,null,null,null,null,null,null,null,null,null,null,null,null,null,"AF",0.1,513,"SS"]
[null,null,null,null,null,null,null,null,null,null,null,null,null,null,null,null,null,null,null,null,null,null,null,null,"AG",0.1,513,"SS"]
[null,null,null,null,null,null,null,null,null,null,null,null,null,null,null,null,null,null,null,null,null,null,null,null,"AH",0.1,513,"SS"]
[null,null,null,null,null,null,null,null,null,null,null,null,null,null,null,null,null,null,null,null,null,null,null,null,"AI",0.1,513,"SS"]
[null,null,null,null,null,null,null,null,null,null,null,null,null,null,null,null,null,null,null,null,null,null,null,null,"AJ",0.05,513,"SS"]
[null,null,null,null,null,null,null,null,null,null,null,null,null,null,null,null,null,null,null,null,null,null,null,null,"AK",0.1,513,"SS"]
[null,null,null,null,null,null,null,null,null,null,null,null,null,null,null,null,null,null,null,null,null,null,null,null,"AL",0.125,513,"SS"]
[null,null,null,null,null,null,null,null,null,null,null,null,null,null,null,null,null,null,null,null,null,null,null,null,"AM",0.1,513,"SS"]
[null,null,null,null,null,null,null,null,null,null,null,null,null,null,null,null,null,null,null,null,null,null,null,null,"AN",0.1,513,"SS"]
[null,null,null,null,null,null,null,null,null,null,null,null,null,null,null,null,null,null,null,null,null,null,null,null,"AO",0.1,513,"SS"]
[null,null,null,null,null,null,null,null,null,null,null,null,null,null,null,null,null,null,null,null,null,null,null,null,"AP",0.08,513,"SS"]
[null,null,null,null,null,null,null,null,null,null,null,null,null,null,null,null,null,null,null,null,null,null,null,null,"AQ",0.08,513,"SS"]
[null,null,null,null,null,null,null,null,null,null,null,null,null,null,null,null,null,null,null,null,null,null,null,null,"AR",0.09,513,"SS"]
[null,null,null,null,null,null,null,null,null,null,null,null,null,null,null,null,null,null,null,null,null,null,null,null,"AS",0.09,513,"SS"]
[null,null,null,null,null,null,null,null,null,null,null,null,null,null,null,null,null,null,null,null,null,null,null,null,"AT",0.08,513,"SS"]
[null,null,null,null,null,null,null,null,null,null,null,null,null,null,null,null,null,null,null,null,null,null,null,null,"AU",0.09,513,"SS"]
[null,null,null,null,null,null,null,null,null,null,null,null,null,null,null,null,null,null,null,null,null,null,null,null,"AV",0.125,513,"SS"]
[null,null,null,null,null,null,null,null,null,null,null,null,null,null,null,null,null,null,null,null,null,null,null,null,"AW",0.09,513,"SS"]
[null,null,null,null,null,null,null,null,null,null,null,null,null,null,null,null,null,null,null,null,null,null,null,null,"AX",0.09,513,"SS"]
[null,null,null,null,null,null,null,null,null,null,null,null,null,null,null,null,null,null,null,null,null,null,null,null,"AY",0.08,513,"SS"]
[null,null,null,null,null,null,null,null,null,null,null,null,null,null,null,null,null,null,null,null,null,null,null,null,"AZ",9.5000000000000001E-2,513,"SS"]
[null,null,null,null,null,null,null,null,null,null,null,null,null,null,null,null,null,null,null,null,null,null,null,null,"B1",3.7499999999999999E-2,0,"NO"]
[null,null,null,null,null,null,null,null,null,null,null,null,null,null,null,null,null,null,null,null,null,null,null,null,"B3",3.7499999999999999E-2,0,"SS"]
[null,null,null,null,null,null,null,null,null,null,null,null,null,null,null,null,null,null,null,null,null,null,null,null,"B4",3.7499999999999999E-2,0,"SS"]
[null,null,null,null,null,null,null,null,null,null,null,null,null,null,null,null,null,null,null,null,null,null,null,null,"B5",9.5000000000000001E-2,513,"SS"]
[null,null,null,null,null,null,null,null,null,null,null,null,null,null,null,null,null,null,null,null,null,null,null,null,"B6",0.01,317,"MED"]
[null,null,null,null,null,null,null,null,null,null,null,null,null,null,null,null,null,null,null,null,null,null,null,null,"B9",0.08,513,"SS"]
[null,null,null,null,null,null,null,null,null,null,null,null,null,null,null,null,null,null,null,null,null,null,null,null,"C3",3.7499999999999999E-2,0,"MED"]
[null,null,null,null,null,null,null,null,null,null,null,null,null,null,null,null,null,null,null,null,null,null,null,null,"C4",0,0,"NO"]
[null,null,null,null,null,null,null,null,null,null,null,null,null,null,null,null,null,null,null,null,null,null,null,null,"C9",0.11,317,"MED"]
[null,null,null,null,null,null,null,null,null,null,null,null,null,null,null,null,null,null,null,null,null,null,null,null,"CB",0.11,317,"NO"]
[null,null,null,null,null,null,null,null,null,null,null,null,null,null,null,null,null,null,null,null,null,null,null,null,"CC",0.11,317,"MED"]
[null,null,null,null,null,null,null,null,null,null,null,null,null,null,null,null,null,null,null,null,null,null,null,null,"CD",0.11,317,"MED"]
[null,null,null,null,null,null,null,null,null,null,null,null,null,null,null,null,null,null,null,null,null,null,null,null,"CE",0.11,317,"NO"]
[null,null,null,null,null,null,null,null,null,null,null,null,null,null,null,null,null,null,null,null,null,null,null,null,"CF",0.11,317,"MED"]
[null,null,null,null,null,null,null,null,null,null,null,null,null,null,null,null,null,null,null,null,null,null,null,null,"CG",0.11,317,"NO"]
[null,null,null,null,null,null,null,null,null,null,null,null,null,null,null,null,null,null,null,null,null,null,null,null,"CH",0.11,317,"NO"]
[null,null,null,null,null,null,null,null,null,null,null,null,null,null,null,null,null,null,null,null,null,null,null,null,"CJ",0.11,317,"MED"]
[null,null,null,null,null,null,null,null,null,null,null,null,null,null,null,null,null,null,null,null,null,null,null,null,"CK",0.11,317,"MED"]
[null,null,null,null,null,null,null,null,null,null,null,null,null,null,null,null,null,null,null,null,null,null,null,null,"CL",0.11,317,"NO"]
[null,null,null,null,null,null,null,null,null,null,null,null,null,null,null,null,null,null,null,null,null,null,null,null,"CP",0.11,317,"MED"]
[null,null,null,null,null,null,null,null,null,null,null,null,null,null,null,null,null,null,null,null,null,null,null,null,"CQ",0.105,317,"NO"]
[null,null,null,null,null,null,null,null,null,null,null,null,null,null,null,null,null,null,null,null,null,null,null,null,"CR",0.11,317,"NO"]
[null,null,null,null,null,null,null,null,null,null,null,null,null,null,null,null,null,null,null,null,null,null,null,null,"CS",0.11,317,"MED"]
[null,null,null,null,null,null,null,null,null,null,null,null,null,null,null,null,null,null,null,null,null,null,null,null,"CT",0.11,317,"NO"]
[null,null,null,null,null,null,null,null,null,null,null,null,null,null,null,null,null,null,null,null,null,null,null,null,"CV",0.11,317,"MED"]
[null,null,null,null,null,null,null,null,null,null,null,null,null,null,null,null,null,null,null,null,null,null,null,null,"CW",0.11,317,"NO"]
[null,null,null,null,null,null,null,null,null,null,null,null,null,null,null,null,null,null,null,null,null,null,null,null,"CX",0.11,317,"MED"]
[null,null,null,null,null,null,null,null,null,null,null,null,null,null,null,null,null,null,null,null,null,null,null,null,"CY",0.13500000000000001,317,"NO"]
[null,null,null,null,null,null,null,null,null,null,null,null,null,null,null,null,null,null,null,null,null,null,null,null,"CZ",0.13500000000000001,317,"MED"]
[null,null,null,null,null,null,null,null,null,null,null,null,null,null,null,null,null,null,null,null,null,null,null,null,"D4",0.08,513,"SS"]
[null,null,null,null,null,null,null,null,null,null,null,null,null,null,null,null,null,null,null,null,null,null,null,null,"D5",0.125,513,"SS"]
[null,null,null,null,null,null,null,null,null,null,null,null,null,null,null,null,null,null,null,null,null,null,null,null,"D7",0.08,513,"SS"]
[null,null,null,null,null,null,null,null,null,null,null,null,null,null,null,null,null,null,null,null,null,null,null,null,"DA",0.1,317,"NO"]
[null,null,null,null,null,null,null,null,null,null,null,null,null,null,null,null,null,null,null,null,null,null,null,null,"DB",0.11,317,"MED"]
[null,null,null,null,null,null,null,null,null,null,null,null,null,null,null,null,null,null,null,null,null,null,null,null,"DC",0.1,513,"SS"]
[null,null,null,null,null,null,null,null,null,null,null,null,null,null,null,null,null,null,null,null,null,null,null,null,"DD",0.1,513,"SS"]
[null,null,null,null,null,null,null,null,null,null,null,null,null,null,null,null,null,null,null,null,null,null,null,null,"DE",9.5000000000000001E-2,513,"SS"]
[null,null,null,null,null,null,null,null,null,null,null,null,null,null,null,null,null,null,null,null,null,null,null,null,"DF",0.1,513,"SS"]
[null,null,null,null,null,null,null,null,null,null,null,null,null,null,null,null,null,null,null,null,null,null,null,null,"DG",9.5000000000000001E-2,513,"SS"]
[null,null,null,null,null,null,null,null,null,null,null,null,null,null,null,null,null,null,null,null,null,null,null,null,"DH",0.1,513,"SS"]
[null,null,null,null,null,null,null,null,null,null,null,null,null,null,null,null,null,null,null,null,null,null,null,null,"DI",0.08,513,"SS"]
[null,null,null,null,null,null,null,null,null,null,null,null,null,null,null,null,null,null,null,null,null,null,null,null,"DJ",0.1,513,"SS"]
[null,null,null,null,null,null,null,null,null,null,null,null,null,null,null,null,null,null,null,null,null,null,null,null,"DK",0.09,317,"NO"]
[null,null,null,null,null,null,null,null,null,null,null,null,null,null,null,null,null,null,null,null,null,null,null,null,"DL",0.1,513,"SS"]
[null,null,null,null,null,null,null,null,null,null,null,null,null,null,null,null,null,null,null,null,null,null,null,null,"DM",0.08,513,"SS"]
[null,null,null,null,null,null,null,null,null,null,null,null,null,null,null,null,null,null,null,null,null,null,null,null,"DO",0.125,513,"SS"]
[null,null,null,null,null,null,null,null,null,null,null,null,null,null,null,null,null,null,null,null,null,null,null,null,"DP",0.08,513,"SS"]
[null,null,null,null,null,null,null,null,null,null,null,null,null,null,null,null,null,null,null,null,null,null,null,null,"DQ",0.1,317,"NO"]
[null,null,null,null,null,null,null,null,null,null,null,null,null,null,null,null,null,null,null,null,null,null,null,null,"DR",0.08,513,"SS"]
[null,null,null,null,null,null,null,null,null,null,null,null,null,null,null,null,null,null,null,null,null,null,null,null,"DS",0.09,317,"NO"]
[null,null,null,null,null,null,null,null,null,null,null,null,null,null,null,null,null,null,null,null,null,null,null,null,"DV",0.09,317,"MED"]
[null,null,null,null,null,null,null,null,null,null,null,null,null,null,null,null,null,null,null,null,null,null,null,null,"DW",0.09,513,"SS"]
[null,null,null,null,null,null,null,null,null,null,null,null,null,null,null,null,null,null,null,null,null,null,null,null,"E0",0.105,317,"NO"]
[null,null,null,null,null,null,null,null,null,null,null,null,null,null,null,null,null,null,null,null,null,null,null,null,"E6",0.13,513,"MED"]
[null,null,null,null,null,null,null,null,null,null,null,null,null,null,null,null,null,null,null,null,null,null,null,null,"EA",0.13,863,"NO"]
[null,null,null,null,null,null,null,null,null,null,null,null,null,null,null,null,null,null,null,null,null,null,null,null,"EB",0.13,863,"MED"]
[null,null,null,null,null,null,null,null,null,null,null,null,null,null,null,null,null,null,null,null,null,null,null,null,"EC",0.13,863,"NO"]
[null,null,null,null,null,null,null,null,null,null,null,null,null,null,null,null,null,null,null,null,null,null,null,null,"ED",0.13,863,"MED"]
[null,null,null,null,null,null,null,null,null,null,null,null,null,null,null,null,null,null,null,null,null,null,null,null,"EE",0.13,863,"NO"]
[null,null,null,null,null,null,null,null,null,null,null,null,null,null,null,null,null,null,null,null,null,null,null,null,"EF",0.13,863,"MED"]
[null,null,null,null,null,null,null,null,null,null,null,null,null,null,null,null,null,null,null,null,null,null,null,null,"EJ",9.5000000000000001E-2,317,"NO"]
[null,null,null,null,null,null,null,null,null,null,null,null,null,null,null,null,null,null,null,null,null,null,null,null,"EK",0.09,513,"SS"]
[null,null,null,null,null,null,null,null,null,null,null,null,null,null,null,null,null,null,null,null,null,null,null,null,"EM",0.13,863,"MED"]
[null,null,null,null,null,null,null,null,null,null,null,null,null,null,null,null,null,null,null,null,null,null,null,null,"ES",0.125,863,"NO"]
[null,null,null,null,null,null,null,null,null,null,null,null,null,null,null,null,null,null,null,null,null,null,null,null,"ET",0.13,863,"MED"]
[null,null,null,null,null,null,null,null,null,null,null,null,null,null,null,null,null,null,null,null,null,null,null,null,"EV",0.125,863,"MED"]
[null,null,null,null,null,null,null,null,null,null,null,null,null,null,null,null,null,null,null,null,null,null,null,null,"EY",0.13,513,"MED"]
[null,null,null,null,null,null,null,null,null,null,null,null,null,null,null,null,null,null,null,null,null,null,null,null,"F0",0.105,317,"NO"]
[null,null,null,null,null,null,null,null,null,null,null,null,null,null,null,null,null,null,null,null,null,null,null,null,"F1",3.7499999999999999E-2,0,"SS"]
[null,null,null,null,null,null,null,null,null,null,null,null,null,null,null,null,null,null,null,null,null,null,null,null,"F2",0.06,317,"MED"]
[null,null,null,null,null,null,null,null,null,null,null,null,null,null,null,null,null,null,null,null,null,null,null,null,"F4",3.7499999999999999E-2,0,"SS"]
[null,null,null,null,null,null,null,null,null,null,null,null,null,null,null,null,null,null,null,null,null,null,null,null,"F5",0.08,513,"SS"]
[null,null,null,null,null,null,null,null,null,null,null,null,null,null,null,null,null,null,null,null,null,null,null,null,"F7",3.7499999999999999E-2,0,"SS"]
[null,null,null,null,null,null,null,null,null,null,null,null,null,null,null,null,null,null,null,null,null,null,null,null,"F8",0.06,317,"MED"]
[null,null,null,null,null,null,null,null,null,null,null,null,null,null,null,null,null,null,null,null,null,null,null,null,"F9",9.5000000000000001E-2,513,"SS"]
[null,null,null,null,null,null,null,null,null,null,null,null,null,null,null,null,null,null,null,null,null,null,null,null,"FA",0.08,513,"SS"]
[null,null,null,null,null,null,null,null,null,null,null,null,null,null,null,null,null,null,null,null,null,null,null,null,"FA",0.08,513,"SS"]
[null,null,null,null,null,null,null,null,null,null,null,null,null,null,null,null,null,null,null,null,null,null,null,null,"FB",0.08,513,"SS"]
[null,null,null,null,null,null,null,null,null,null,null,null,null,null,null,null,null,null,null,null,null,null,null,null,"FD",3.7499999999999999E-2,0,"SS"]
[null,null,null,null,null,null,null,null,null,null,null,null,null,null,null,null,null,null,null,null,null,null,null,null,"FF",3.7499999999999999E-2,0,"SS"]
[null,null,null,null,null,null,null,null,null,null,null,null,null,null,null,null,null,null,null,null,null,null,null,null,"FG",0.09,513,"SS"]
[null,null,null,null,null,null,null,null,null,null,null,null,null,null,null,null,null,null,null,null,null,null,null,null,"FH",0.09,513,"SS"]
[null,null,null,null,null,null,null,null,null,null,null,null,null,null,null,null,null,null,null,null,null,null,null,null,"FL",0.08,513,"SS"]
[null,null,null,null,null,null,null,null,null,null,null,null,null,null,null,null,null,null,null,null,null,null,null,null,"FP",0.08,513,"SS"]
[null,null,null,null,null,null,null,null,null,null,null,null,null,null,null,null,null,null,null,null,null,null,null,null,"FR",3.7499999999999999E-2,0,"SS"]
[null,null,null,null,null,null,null,null,null,null,null,null,null,null,null,null,null,null,null,null,null,null,null,null,"FS",3.7499999999999999E-2,0,"SS"]
[null,null,null,null,null,null,null,null,null,null,null,null,null,null,null,null,null,null,null,null,null,null,null,null,"FT",0.1,513,"SS"]
[null,null,null,null,null,null,null,null,null,null,null,null,null,null,null,null,null,null,null,null,null,null,null,null,"FV",0.08,513,"SS"]
[null,null,null,null,null,null,null,null,null,null,null,null,null,null,null,null,null,null,null,null,null,null,null,null,"FW",0.1,513,"SS"]
[null,null,null,null,null,null,null,null,null,null,null,null,null,null,null,null,null,null,null,null,null,null,null,null,"FX",9.5000000000000001E-2,513,"SS"]
[null,null,null,null,null,null,null,null,null,null,null,null,null,null,null,null,null,null,null,null,null,null,null,null,"FY",3.7499999999999999E-2,0,"SS"]
[null,null,null,null,null,null,null,null,null,null,null,null,null,null,null,null,null,null,null,null,null,null,null,null,"G5",0.13,863,"NO"]
[null,null,null,null,null,null,null,null,null,null,null,null,null,null,null,null,null,null,null,null,null,null,null,null,"GB",0.15,863,"MED"]
[null,null,null,null,null,null,null,null,null,null,null,null,null,null,null,null,null,null,null,null,null,null,null,null,"GC",0.13,513,"NO"]
[null,null,null,null,null,null,null,null,null,null,null,null,null,null,null,null,null,null,null,null,null,null,null,null,"GD",0.13,513,"MED"]
[null,null,null,null,null,null,null,null,null,null,null,null,null,null,null,null,null,null,null,null,null,null,null,null,"GE",0.13,513,"NO"]
[null,null,null,null,null,null,null,null,null,null,null,null,null,null,null,null,null,null,null,null,null,null,null,null,"GF",0.13,513,"MED"]
[null,null,null,null,null,null,null,null,null,null,null,null,null,null,null,null,null,null,null,null,null,null,null,null,"GG",0.13,513,"NO"]
[null,null,null,null,null,null,null,null,null,null,null,null,null,null,null,null,null,null,null,null,null,null,null,null,"GH",0.13,513,"MED"]
[null,null,null,null,null,null,null,null,null,null,null,null,null,null,null,null,null,null,null,null,null,null,null,null,"GJ",0.13,863,"NO"]
[null,null,null,null,null,null,null,null,null,null,null,null,null,null,null,null,null,null,null,null,null,null,null,null,"GK",0.13,863,"MED"]
[null,null,null,null,null,null,null,null,null,null,null,null,null,null,null,null,null,null,null,null,null,null,null,null,"GN",0.15,513,"MED"]
[null,null,null,null,null,null,null,null,null,null,null,null,null,null,null,null,null,null,null,null,null,null,null,null,"GR",0.14000000000000001,513,"MED"]
[null,null,null,null,null,null,null,null,null,null,null,null,null,null,null,null,null,null,null,null,null,null,null,null,"GS",0.14000000000000001,513,"NO"]
[null,null,null,null,null,null,null,null,null,null,null,null,null,null,null,null,null,null,null,null,null,null,null,null,"GV",0.13,513,"MED"]
[null,null,null,null,null,null,null,null,null,null,null,null,null,null,null,null,null,null,null,null,null,null,null,null,"GX",0.13,863,"MED"]
[null,null,null,null,null,null,null,null,null,null,null,null,null,null,null,null,null,null,null,null,null,null,null,null,"H1",0.14499999999999999,863,"MED"]
[null,null,null,null,null,null,null,null,null,null,null,null,null,null,null,null,null,null,null,null,null,null,null,null,"H2",0.115,863,"NO"]
[null,null,null,null,null,null,null,null,null,null,null,null,null,null,null,null,null,null,null,null,null,null,null,null,"HJ",0.115,317,"MED"]
[null,null,null,null,null,null,null,null,null,null,null,null,null,null,null,null,null,null,null,null,null,null,null,null,"HL",0.11,317,"MED"]
[null,null,null,null,null,null,null,null,null,null,null,null,null,null,null,null,null,null,null,null,null,null,null,null,"HP",0.11,317,"MED"]
[null,null,null,null,null,null,null,null,null,null,null,null,null,null,null,null,null,null,null,null,null,null,null,null,"HR",0.11,317,"NO"]
[null,null,null,null,null,null,null,null,null,null,null,null,null,null,null,null,null,null,null,null,null,null,null,null,"HS",0.14499999999999999,863,"NO"]
[null,null,null,null,null,null,null,null,null,null,null,null,null,null,null,null,null,null,null,null,null,null,null,null,"HT",0.14499999999999999,863,"MED"]
[null,null,null,null,null,null,null,null,null,null,null,null,null,null,null,null,null,null,null,null,null,null,null,null,"HX",0.13500000000000001,317,"NO"]
[null,null,null,null,null,null,null,null,null,null,null,null,null,null,null,null,null,null,null,null,null,null,null,null,"HY",0.13500000000000001,317,"MED"]
[null,null,null,null,null,null,null,null,null,null,null,null,null,null,null,null,null,null,null,null,null,null,null,null,"J",0.08,0,"NO"]
[null,null,null,null,null,null,null,null,null,null,null,null,null,null,null,null,null,null,null,null,null,null,null,null,"JA",0.01,0,"NO"]
[null,null,null,null,null,null,null,null,null,null,null,null,null,null,null,null,null,null,null,null,null,null,null,null,"JB",0.01,0,"MED"]
[null,null,null,null,null,null,null,null,null,null,null,null,null,null,null,null,null,null,null,null,null,null,null,null,"JC",0,0,"NO"]
[null,null,null,null,null,null,null,null,null,null,null,null,null,null,null,null,null,null,null,null,null,null,null,null,"JD",0.16750000000000001,0,"MED"]
[null,null,null,null,null,null,null,null,null,null,null,null,null,null,null,null,null,null,null,null,null,null,null,null,"JE",0.16750000000000001,0,"NO"]
[null,null,null,null,null,null,null,null,null,null,null,null,null,null,null,null,null,null,null,null,null,null,null,null,"JF",0.08,0,"MED"]
[null,null,null,null,null,null,null,null,null,null,null,null,null,null,null,null,null,null,null,null,null,null,null,null,"JG",0,0,"NO"]
[null,null,null,null,null,null,null,null,null,null,null,null,null,null,null,null,null,null,null,null,null,null,null,null,"JH",0,0,"MED"]
[null,null,null,null,null,null,null,null,null,null,null,null,null,null,null,null,null,null,null,null,null,null,null,null,"JI",0,0,"NO"]
[null,null,null,null,null,null,null,null,null,null,null,null,null,null,null,null,null,null,null,null,null,null,null,null,"JJ",0,0,"MED"]
[null,null,null,null,null,null,null,null,null,null,null,null,null,null,null,null,null,null,null,null,null,null,null,null,"JK",0,0,"NO"]
[null,null,null,null,null,null,null,null,null,null,null,null,null,null,null,null,null,null,null,null,null,null,null,null,"JL",0,0,"MED"]
[null,null,null,null,null,null,null,null,null,null,null,null,null,null,null,null,null,null,null,null,null,null,null,null,"JM",0.08,0,"MED"]
[null,null,null,null,null,null,null,null,null,null,null,null,null,null,null,null,null,null,null,null,null,null,null,null,"L",0.04,0,"SS"]
[null,null,null,null,null,null,null,null,null,null,null,null,null,null,null,null,null,null,null,null,null,null,null,null,"LO",0.08,0,"SS"]
[null,null,null,null,null,null,null,null,null,null,null,null,null,null,null,null,null,null,null,null,null,null,null,null,"N",0,0,"NO"]
[null,null,null,null,null,null,null,null,null,null,null,null,null,null,null,null,null,null,null,null,null,null,null,null,"NA",0,0,"MED"]
[null,null,null,null,null,null,null,null,null,null,null,null,null,null,null,null,null,null,null,null,null,null,null,null,"NM",0,0,"MED"]
[null,null,null,null,null,null,null,null,null,null,null,null,null,null,null,null,null,null,null,null,null,null,null,null,"NO",0,0,"SS"]
[null,null,null,null,null,null,null,null,null,null,null,null,null,null,null,null,null,null,null,null,null,null,null,null,"P2",0,0,"NO"]
[null,null,null,null,null,null,null,null,null,null,null,null,null,null,null,null,null,null,null,null,null,null,null,null,"P5",3.7499999999999999E-2,0,"SS"]
[null,null,null,null,null,null,null,null,null,null,null,null,null,null,null,null,null,null,null,null,null,null,null,null,"P6",3.7499999999999999E-2,0,"SS"]
[null,null,null,null,null,null,null,null,null,null,null,null,null,null,null,null,null,null,null,null,null,null,null,null,"P7",0.01,317,"MED"]
[null,null,null,null,null,null,null,null,null,null,null,null,null,null,null,null,null,null,null,null,null,null,null,null,"P8",1.4999999999999999E-2,0,"MED"]
[null,null,null,null,null,null,null,null,null,null,null,null,null,null,null,null,null,null,null,null,null,null,null,null,"PA",0.09,513,"SS"]
[null,null,null,null,null,null,null,null,null,null,null,null,null,null,null,null,null,null,null,null,null,null,null,null,"PB",0.09,513,"SS"]
[null,null,null,null,null,null,null,null,null,null,null,null,null,null,null,null,null,null,null,null,null,null,null,null,"PC",0.09,513,"SS"]
[null,null,null,null,null,null,null,null,null,null,null,null,null,null,null,null,null,null,null,null,null,null,null,null,"PD",3.7499999999999999E-2,0,"SS"]
[null,null,null,null,null,null,null,null,null,null,null,null,null,null,null,null,null,null,null,null,null,null,null,null,"PE",0.105,317,"NO"]
[null,null,null,null,null,null,null,null,null,null,null,null,null,null,null,null,null,null,null,null,null,null,null,null,"PF",0.11,317,"MED"]
[null,null,null,null,null,null,null,null,null,null,null,null,null,null,null,null,null,null,null,null,null,null,null,null,"PG",0.1,513,"SS"]
[null,null,null,null,null,null,null,null,null,null,null,null,null,null,null,null,null,null,null,null,null,null,null,null,"PH",0.11,317,"NO"]
[null,null,null,null,null,null,null,null,null,null,null,null,null,null,null,null,null,null,null,null,null,null,null,null,"PJ",0.105,317,"MED"]
[null,null,null,null,null,null,null,null,null,null,null,null,null,null,null,null,null,null,null,null,null,null,null,null,"PL",9.5000000000000001E-2,513,"SS"]
[null,null,null,null,null,null,null,null,null,null,null,null,null,null,null,null,null,null,null,null,null,null,null,null,"PM",0.1,513,"SS"]
[null,null,null,null,null,null,null,null,null,null,null,null,null,null,null,null,null,null,null,null,null,null,null,null,"PN",0.09,513,"SS"]
[null,null,null,null,null,null,null,null,null,null,null,null,null,null,null,null,null,null,null,null,null,null,null,null,"PP",0.09,513,"SS"]
[null,null,null,null,null,null,null,null,null,null,null,null,null,null,null,null,null,null,null,null,null,null,null,null,"PR",8.5000000000000006E-2,513,"NO"]
[null,null,null,null,null,null,null,null,null,null,null,null,null,null,null,null,null,null,null,null,null,null,null,null,"PS",0.1,317,"MED"]
[null,null,null,null,null,null,null,null,null,null,null,null,null,null,null,null,null,null,null,null,null,null,null,null,"PT",0.105,317,"NO"]
[null,null,null,null,null,null,null,null,null,null,null,null,null,null,null,null,null,null,null,null,null,null,null,null,"PV",0.1,317,"MED"]
[null,null,null,null,null,null,null,null,null,null,null,null,null,null,null,null,null,null,null,null,null,null,null,null,"PW",0.09,513,"SS"]
[null,null,null,null,null,null,null,null,null,null,null,null,null,null,null,null,null,null,null,null,null,null,null,null,"PX",0.09,513,"SS"]
[null,null,null,null,null,null,null,null,null,null,null,null,null,null,null,null,null,null,null,null,null,null,null,null,"PY",8.5000000000000006E-2,513,"SS"]
[null,null,null,null,null,null,null,null,null,null,null,null,null,null,null,null,null,null,null,null,null,null,null,null,"RA",8.5000000000000006E-2,513,"SS"]
[null,null,null,null,null,null,null,null,null,null,null,null,null,null,null,null,null,null,null,null,null,null,null,null,"RB",8.5000000000000006E-2,513,"SS"]
[null,null,null,null,null,null,null,null,null,null,null,null,null,null,null,null,null,null,null,null,null,null,null,null,"RC",8.5000000000000006E-2,513,"SS"]
[null,null,null,null,null,null,null,null,null,null,null,null,null,null,null,null,null,null,null,null,null,null,null,null,"RD",8.7499999999999994E-2,513,"SS"]
[null,null,null,null,null,null,null,null,null,null,null,null,null,null,null,null,null,null,null,null,null,null,null,null,"RE",8.5000000000000006E-2,513,"SS"]
[null,null,null,null,null,null,null,null,null,null,null,null,null,null,null,null,null,null,null,null,null,null,null,null,"RF",8.5000000000000006E-2,513,"SS"]
[null,null,null,null,null,null,null,null,null,null,null,null,null,null,null,null,null,null,null,null,null,null,null,null,"RG",8.5000000000000006E-2,513,"SS"]
[null,null,null,null,null,null,null,null,null,null,null,null,null,null,null,null,null,null,null,null,null,null,null,null,"RH",8.5000000000000006E-2,513,"SS"]
[null,null,null,null,null,null,null,null,null,null,null,null,null,null,null,null,null,null,null,null,null,null,null,null,"SA",0.115,317,"MED"]
[null,null,null,null,null,null,null,null,null,null,null,null,null,null,null,null,null,null,null,null,null,null,null,null,"SB",0.115,317,"NO"]
[null,null,null,null,null,null,null,null,null,null,null,null,null,null,null,null,null,null,null,null,null,null,null,null,"SC",0.115,317,"MED"]
[null,null,null,null,null,null,null,null,null,null,null,null,null,null,null,null,null,null,null,null,null,null,null,null,"SD",0.115,317,"MED"]
[null,null,null,null,null,null,null,null,null,null,null,null,null,null,null,null,null,null,null,null,null,null,null,null,"SE",0.115,317,"MED"]
[null,null,null,null,null,null,null,null,null,null,null,null,null,null,null,null,null,null,null,null,null,null,null,null,"SF",0.115,317,"NO"]
[null,null,null,null,null,null,null,null,null,null,null,null,null,null,null,null,null,null,null,null,null,null,null,null,"SG",0.115,317,"MED"]
[null,null,null,null,null,null,null,null,null,null,null,null,null,null,null,null,null,null,null,null,null,null,null,null,"SH",0.115,317,"NO"]
[null,null,null,null,null,null,null,null,null,null,null,null,null,null,null,null,null,null,null,null,null,null,null,null,"SI",0.115,317,"MED"]
[null,null,null,null,null,null,null,null,null,null,null,null,null,null,null,null,null,null,null,null,null,null,null,null,"SJ",0.115,317,"MED"]
[null,null,null,null,null,null,null,null,null,null,null,null,null,null,null,null,null,null,null,null,null,null,null,null,"SK",0.115,317,"MED"]
[null,null,null,null,null,null,null,null,null,null,null,null,null,null,null,null,null,null,null,null,null,null,null,null,"SL",0.115,317,"MED"]
[null,null,null,null,null,null,null,null,null,null,null,null,null,null,null,null,null,null,null,null,null,null,null,null,"T",0.08,0,"NO"]
[null,null,null,null,null,null,null,null,null,null,null,null,null,null,null,null,null,null,null,null,null,null,null,null,"TA",0.10249999999999999,0,"MED"]
[null,null,null,null,null,null,null,null,null,null,null,null,null,null,null,null,null,null,null,null,null,null,null,null,"TC",0.10249999999999999,0,"MED"]
[null,null,null,null,null,null,null,null,null,null,null,null,null,null,null,null,null,null,null,null,null,null,null,null,"TD",7.4999999999999997E-2,0,"NO"]
[null,null,null,null,null,null,null,null,null,null,null,null,null,null,null,null,null,null,null,null,null,null,null,null,"TE",0.09,513,"SS"]
[null,null,null,null,null,null,null,null,null,null,null,null,null,null,null,null,null,null,null,null,null,null,null,null,"TF",0.09,513,"SS"]
[null,null,null,null,null,null,null,null,null,null,null,null,null,null,null,null,null,null,null,null,null,null,null,null,"TG",0.09,513,"SS"]
[null,null,null,null,null,null,null,null,null,null,null,null,null,null,null,null,null,null,null,null,null,null,null,null,"TH",0.09,513,"SS"]
[null,null,null,null,null,null,null,null,null,null,null,null,null,null,null,null,null,null,null,null,null,null,null,null,"TJ",0.08,513,"SS"]
[null,null,null,null,null,null,null,null,null,null,null,null,null,null,null,null,null,null,null,null,null,null,null,null,"TK",0.08,513,"SS"]
[null,null,null,null,null,null,null,null,null,null,null,null,null,null,null,null,null,null,null,null,null,null,null,null,"TL",0.05,513,"SS"]
[null,null,null,null,null,null,null,null,null,null,null,null,null,null,null,null,null,null,null,null,null,null,null,null,"TM",7.4999999999999997E-2,0,"MED"]
[null,null,null,null,null,null,null,null,null,null,null,null,null,null,null,null,null,null,null,null,null,null,null,null,"TN",0.05,513,"SS"]
[null,null,null,null,null,null,null,null,null,null,null,null,null,null,null,null,null,null,null,null,null,null,null,null,"TP",9.5000000000000001E-2,513,"SS"]
[null,null,null,null,null,null,null,null,null,null,null,null,null,null,null,null,null,null,null,null,null,null,null,null,"TR",0.05,513,"SS"]
[null,null,null,null,null,null,null,null,null,null,null,null,null,null,null,null,null,null,null,null,null,null,null,null,"TS",0.09,513,"SS"]
[null,null,null,null,null,null,null,null,null,null,null,null,null,null,null,null,null,null,null,null,null,null,null,null,"TX",7.4999999999999997E-2,0,"NO"]
[null,null,null,null,null,null,null,null,null,null,null,null,null,null,null,null,null,null,null,null,null,null,null,null,"TY",7.4999999999999997E-2,0,"MED"]
[null,null,null,null,null,null,null,null,null,null,null,null,null,null,null,null,null,null,null,null,null,null,null,null,"TZ",0.05,513,"SS"]